{"text_format":"1","workbook":"xlsx","n_sheets":4,"sheets":["Home Tab","Customer Data","Income Statement","Balance Sheet"],"not_rendered":{"charts":0,"images":0,"macros":1,"external_links":0,"defined_names":0,"comments":0,"pivot_tables":0},"unopened":[],"bounds":{"document_bytes":16777216,"sheet_cells":100000,"rows_first":2000,"rows_last":500,"rows_between":2000,"halvings":0,"cell_chars":16384,"cell_head_chars":4096},"cells_cut":0,"cells_raw":0,"read":"whole","date_system":"1900"}

{"sheet":"Home Tab","index":0,"n_rows":0,"n_cols":0,"rows_kept":0,"cut":false,"hidden":false,"merged":[]}

{"sheet":"Customer Data","index":1,"n_rows":544,"n_cols":13,"rows_kept":544,"cut":false,"hidden":false,"merged":[[0,0,0,12]]}
["Customer Information"]
["Name","Street Address","Zip Code","City","State","Phone #","Contact","Date Due","Provider","Lead Rep","Level of Interest","Price Extended","Notes"]
["Payless Shoe Source","120 W. State St.",null,"Pleasant Grove","Utah",null,null,"2011-01-06","New","Zach Clegg"]
["Salon Vox","456 E. State Ste. 700",null,"American Fork","Utah",null,null,"2011-01-01",null,"Zach Clegg"]
["PORTER PAINT","635 N 1200 West",null,"Orem","Utah","(801) 224-8885","Ryan Hopkins","2011-01-01",null,"Zach Clegg"]
["FAST GAS OREM","185 W 400 North",null,"Orem","Utah","(801) 226-3561","Michele Gout","2011-01-01","Utah Fire","Zach Clegg"]
["LKC Auto","150 E. State ",null,"Pleasant Grove","Utah",null,null,"2011-01-01","Boss","Zach Clegg"]
["Edible Arrangements","2500 N. University Parkway #29",null,"Provo","Utah",null,null,"2011-01-01","New","Matt Wald"]
["DOWNEAST OUTFITTERS","2255 N UNIVERSITY PKWY STE 25",null,"Provo","Utah","(801)375-9390","FREEDMAN, WILLIAM","2011-01-01","Taylor's","Matt Wald"]
["Partyland","850 E. 310 N.",null,"Lehi","Utah",null,null,"2011-01-08","Colonial","Zach Clegg"]
["Convicted Ink ","275 N. University Avenue",null,"Provo","Utah","Zach Clegg",null,"2011-01-08","Taylor's","Zach Clegg",2]
["PAYLESS SHOE SOURCE #2229","495 N State Street",null,"Orem","Utah","(801) 226-8716","Jon Cogswell","2011-01-10","Utah Fire","Zach Clegg"]
["WALGREENS #9192","763 N State Street",null,"Orem","Utah","(801) 734-1609","Elmo Diaz","2011-01-10","Firetrol","Zach Clegg"]
["HOME FABRICS","323 E University Parkway",null,"Orem","Utah","(801) 224-3044","Hannah Burningham","2011-01-10","Fire Suppression","Zach Clegg"]
["PETCO ANIMAL SUPPLIES, INC. #491","85 S State Street",null,"Orem","Utah","(801) 434-8819","Michelle Kellar","2011-01-10","Utah Fire","Zach Clegg"]
["The Car Doctors","554 W. State St.",null,"Pleasant Grove","Utah","801-785-9882",null,"2011-01-10","Utah Fire","Zach Clegg"]
["Grease Monkey","101 N. West State Rd.",null,"American Fork","Utah",null,null,"2011-01-11","Taylor's","Zach Clegg",2]
["DOWNEAST OUTFITTERS, INC.","79 N State Street",null,"Orem","Utah","(801) 434-4866","Charels Freedman","2011-01-11","Taylor's","Zach Clegg"]
["O'REILLY AUTO PARTS #3443","874 S State Street",null,"Orem","Utah","(801) 224-0117","Bill Stuver","2011-01-11","Utah Fire","Zach Clegg"]
["Sunkissed","101 North 1200 East",null,"Lehi","Utah",null,null,"2011-01-12","Taylor's","Zach Clegg"]
["Blockbuster","2017 N. University Parkway",null,"Provo","Utah",null,null,"2011-01-12","Utah Fire","Matt Wald"]
["Beaches","1400 N. 500 E.",null,"Logan","Utah",null,null,"2011-01-13","Cache Valley","Zach Clegg"]
["Love to Cook","1211 N. Main St.",null,"Logan","Utah",null,null,"2011-01-13","Cache Valley","Zach Clegg"]
["BEST BUY APPLIANCE","665 N State Street",null,"Orem","Utah","(801) 226-2620","Scott Morgan","2011-01-14","FirePro","Zach Clegg"]
["Marz Precision","1500 N. State",null,"Lehi","Utah",null,null,"2011-01-15",null,"Zach Clegg",1,25]
["Data Pad","115 S. State St. ",null,"Lindon","Utah",null,null,"2011-01-17","Colonial","Zach Clegg",3]
["INSTUDIO PHOTOGRAPHICS, LLC","44 W Center Street",null,"Orem","Utah","(801) 221-1100","Marylyn Linge","2011-01-17",null,"Zach Clegg"]
["Down East","45 N. 600 W.",null,"American Fork","Utah",null,null,"2011-01-18","Taylor's","Zach Clegg"]
["Fedex","101 N. West State Rd.",null,"American Fork","Utah",null,null,"2011-01-18",null,"Zach Clegg",3]
["Mercy House Coffee","1680 N. State St.",null,"Orem","Utah","(801) 221-2595",null,"2011-01-18",null,"Zach Clegg"]
["Walker's","290 W. Main St.",null,"American Fork","Utah",null,null,"2011-01-20","State Fire","Zach Clegg"]
["BIBISUNFLOWER","845 N 100 West",null,"Orem","Utah","(801) 226-4060","Bibi Martinez","2011-01-21",null,"Zach Clegg"]
["EL CENTRO DE OREM","845 N 100 West",null,"Orem","Utah","(801) 802-0350","Carlos Uribe","2011-01-26",null,"Zach Clegg"]
["Cookie Cutters","468 N. 1050 W.",null,"American Fork","Utah",null,null,"2011-01-27","Colonial","Zach Clegg"]
["Sherwin Williams","268 N. State St.",null,"Orem","Utah",null,null,"2011-01-27",null,"Zach Clegg"]
["NICO'S AUTO SALES","142 S State Street",null,"Orem","Utah","(801) 426-4344","Gaston Biscaro","2011-01-27",null,"Zach Clegg"]
["Sherwin Williams","462 N. Main",null,"Logan","Utah",null,null,"2011-01-30","Cache Valley","Zach Clegg"]
["American Fork Pawn","88 W. Main St.",null,"American Fork","Utah",8578017,null,"2011-02-01","New","Zach Clegg"]
["CENTER STAGE PERFORMING ARTS PRESCHOOL/KINDERGARTEN, LLC","585 N 1200 West",null,"Orem","Utah","(801) 785-9740","Jilane Bodily","2011-02-01",null,"Zach Clegg"]
["CENTER STAGE PERFORMING ARTS STUDIOS","575 N 1200 West",null,"Orem","Utah","(801) 224-9012","Alex Murillo","2011-02-01",null,"Zach Clegg"]
["HERINGER MARINE","944 N 1200 West",null,"Orem","Utah","(801) 225-9133","Clark Heringer","2011-02-01",null,"Zach Clegg"]
["FAMILY LEGACY DENTAL,LLC","845 N 100 West Suite 100",null,"Orem","Utah","(801) 227-5080","Lamona Fullmer","2011-02-01",null,"Zach Clegg"]
["Dernell's Barber Shop","1120 S. State ste. 140",null,"Orem","Utah",null,null,"2011-02-01",null,"Zach Clegg"]
["VAN WAGENEN FINANCE, L.C.","953 S State Street",null,"Orem","Utah","(801) 226-4488","Norman Van Wagenen","2011-02-01","Colonial","Zach Clegg"]
["Doug Martin Photography","1595 S. State ST.",null,"Orem","Utah",null,null,"2011-02-01","Taylor's","Zach Clegg",2]
["SunSational Awnings","587 W. State St.",null,"Pleasant Grove","Utah",null,null,"2011-02-01","Taylor's","Zach Clegg"]
["Dog Daycare","center St. main",null,"Pleasant Grove","Utah",null,null,"2011-02-01",null,"Zach Clegg"]
["Gianni","270 W. Center St.",null,"Provo","Utah",null,null,"2011-02-01",null,"Zach Clegg",2]
["Day Murray Music","115 E. Main",null,"Lehi","Utah",null,null,"2011-02-03","Utah Fire","Zach Clegg"]
["Deadwood Pawn","32 W. Main St.",null,"Lehi","Utah",null,null,"2011-02-03","Utah Fire","Zach Clegg"]
["Grease'n'go ","274 S. 740 East",null,"American Fork","Utah","(801) 763-9400",null,"2011-02-06",null,"Zach Clegg"]
["SPEEDY ELECTRIC AUTO","809 W 400 North",null,"Orem","Utah","(801) 227-4507","Angel Hernandez","2011-02-07","Taylor's","Zach Clegg"]
["DREAM DINNERS","845 N 100 West 105",null,"Orem","Utah","(801) 225-7655","Danielle Mahoney","2011-02-08",null,"Zach Clegg"]
["Rain Check","116 W. Main",null,"American Fork","Utah","492-4333",null,"2011-02-10","FirePro","Zach Clegg"]
["Stone Haven Dental","179 N. 1200 E",null,"Lehi","Utah",null,null,"2011-02-10","Taylor's","Zach Clegg"]
["Summit Fastners","40 N Geneva Rd.",null,"Orem","Utah","(801) 224-3881",null,"2011-02-10",null,"Zach Clegg"]
["Evergreen Square","901 S. State",null,"Orem","Utah",null,null,"2011-02-11","Taylor's","Zach Clegg"]
["Vida y Salud","1110 S. State",null,"Orem","Utah",null,null,"2011-02-11","Taylor's","Zach Clegg"]
["T J MAXX  #152","268 W University Parkway",null,"Orem","Utah","(801) 226-6050","Robert Tuttle","2011-02-11","Utah Fire","Zach Clegg"]
["General Store","347 W. 200 S.",null,"Pleasant Grove","Utah",null,null,"2011-02-11","Taylor's ","Zach Clegg"]
["EZ PAWN","934 N State Street",null,"Orem","Utah","(801) 404-5660","Stacy Beausher","2011-02-14",null,"Zach Clegg"]
["SHOPKO STORES OPERATING CO LLC #086","2266 N UNIVERSITY PKWY",null,"Provo","Utah","(801)373-7000","SHOPKO STORES OPERATING CO LLC","2011-02-14","Utah Fire","Matt Wald"]
["Affordable Dentures","484 North 950 West",null,"American Fork","Utah",null,null,"2011-02-15","Colonial","Zach Clegg"]
["SEASONS SALON & DAY SPA LLC","934 N State Street #108",null,"Orem","Utah","(801) 372-4030","Autumn Spencer","2011-02-15",null,"Zach Clegg"]
["Edward Jones","340 S. State",null,"Pleasant Grove","Utah",null,null,"2011-02-15","FirePro","Zach Clegg"]
["Cal Ranch","675 S. 500 East",null,"American Fork","Utah",null,null,"2011-02-17","Utah Fire","Zach Clegg"]
["Clark's Tuxedos ","62 N. 600 W.",null,"American Fork","Utah",null,null,"2011-02-17",null,"Zach Clegg"]
["EVCO HOUSE OF HOSE","113 N 1200 West",null,"Orem","Utah","(801) 226-2882","Dave Adkins","2011-02-17","Utah Fire","Zach Clegg"]
["ROYS AUTO SERVICE","1047 N State Street #4",null,"Orem","Utah","(801) 224-7940","Roy Morgan","2011-02-18",null,"Zach Clegg"]
["Young Family Dental","471 E. State",null,"American Fork","Utah",null,null,"2011-03-01",null,"Zach Clegg"]
["Rubies Cake Shop","30 W. Main St.",null,"American Fork","Utah",null,null,"2011-03-01","New","Zach Clegg"]
["Avon","51 N. 600 W.",null,"American Fork","Utah",null,null,"2011-03-01","Boss","Zach Clegg"]
["Greenwood Service","250 E. State St.",null,"American Fork","Utah",null,null,"2011-03-01","Colonial","Zach Clegg",2,10]
["Dunbeck & Moss","175 N. Main ",null,"Heber City","Utah",null,null,"2011-03-01","Byrd's","Zach Clegg",2]
["The Local Grind","55 W. 100 S.",null,"Heber City","Utah",null,null,"2011-03-01",null,"Zach Clegg",2]
["Simmons Floors","1359 East Main Street",null,"Lehi","Utah",null,null,"2011-03-01","Boss","Zach Clegg"]
["Vinyl Fence","1350 E. Main St.",null,"Lehi","Utah",null,null,"2011-03-01","Colonial","Zach Clegg"]
["Haws & Co.","127 E. Main St.",null,"Lehi","Utah",null,null,"2011-03-01","Colonial","Zach Clegg"]
["Dent Master","710 N. 400 E. ",null,"Lehi","Utah",null,null,"2011-03-01","Fire Suppression","Zach Clegg",1,10]
["Beyond Taekwondo","150 S. State St. Suite 10",null,"Lindon","Utah","801-796-0412",null,"2011-03-01",null,"Zach Clegg"]
["FAST GAS #5","1091 N State Street",null,"Orem","Utah","(801) 224-3272","Austin Westring","2011-03-01",null,"Zach Clegg"]
["TIMP RENTAL CENTER","155 W 800 North #1",null,"Orem","Utah","(801) 785-3705","John Phelon","2011-03-01",null,"Zach Clegg"]
["PERFORMANCE AUDIO, LLC","1420 W Center Street",null,"Orem","Utah","(801) 709-2989","Chris Fillmore","2011-03-01",null,"Zach Clegg"]
["Geshik","148 S. State Street",null,"Orem","Utah",null,null,"2011-03-01",null,"Zach Clegg"]
["State Farm Insurance","1015 S. State St.",null,"Orem","Utah",null,null,"2011-03-01","Boss","Zach Clegg"]
["BRADY'S AUTO WORKS","243 W 700 North",null,"Orem","Utah","(801) 615-4311","Scott Brady","2011-03-01","New","Zach Clegg"]
["JUICE 'N JAVA","535 N State Street",null,"Orem","Utah","(801) 374-2600","Jimmy Guroufalias","2011-03-01",null,"Zach Clegg"]
["Urban Downfall","1290 S. State St. ",null,"Orem","Utah",null,null,"2011-03-01","Boss","Zach Clegg"]
["REAL FOODS MARKET","420 W 800 North",null,"Orem","Utah","(801) 368-1706","Jason Nielsen","2011-03-01",null,"Zach Clegg"]
["FINISH TAILOR","327 E 1200 South #6",null,"Orem","Utah","(801) 224-6368","De Tores","2011-03-01","Boss","Zach Clegg",2]
["Modify Salon","1400 S. State sT.",null,"Orem","Utah",null,null,"2011-03-01",null,null,2]
["XPDEX","1786 S. State St.",null,"Orem","Utah",null,null,"2011-03-01","Utah Fire","Zach Clegg",3,null,"Corporate"]
["mactraders","46 E. State St.",null,"Pleasant Grove","Utah",null,null,"2011-03-01","Colonial","Zach Clegg"]
["Diamond Rental","1300 W. State St. ",null,"Pleasant Grove","Utah",null,null,"2011-03-01",null,null,3,null,"Corporate"]
["SALON K","5047 N EDGEWOOD DR",null,"Provo","Utah","(801)376-4901","RONEY, BROOKE","2011-03-01","Boss","Zach Clegg"]
["Amigo Insurance","1700 N. State ST. ",null,"Provo","Utah","801-373-1202",null,"2011-03-01","Boss","Zach Clegg",1,20]
["Animal Ark","500 E. State",null,"American Fork","Utah",null,null,"2011-03-02","Colonial","Zach Clegg"]
["Beautylicious","648 East State",null,"American Fork","Utah","801-763-7314",null,"2011-03-04","Boss","Zach Clegg"]
["Hobby Lobby","240 N. West State Rd.",null,"American Fork","Utah",null,null,"2011-03-04","Utah Fire","Zach Clegg"]
["FAMOUS FOOTWEAR  #1427","292 W University Parkway",null,"Orem","Utah","(801) 226-5292","Wendi Watt","2011-03-04","State Fire","Zach Clegg"]
["MICHAELS #8003","321 E University Parkway",null,"Orem","Utah","(801) 225-1085","Luaria Webb","2011-03-05","Simplex Grinnell","Zach Clegg"]
["MCGEE'S AUTO REPAIR","1031 N State Street",null,"Orem","Utah","(801) 400-1658","Joe McGee","2011-03-07",null,"Zach Clegg"]
["UPPER CASE PRINTING, INC.","459 W Center Street",null,"Orem","Utah","(801) 373-0507","Doug Hendrickson","2011-03-07","Taylor's","Zach Clegg"]
["Lehi Stylists","200 E. State",null,"Lehi","Utah",null,null,"2011-03-08","Colonial","Zach Clegg",1,15]
["Big Mountain Countertops","317 N. State St.",null,"Orem","Utah",null,null,"2011-03-08","Boss","Zach Clegg"]
["EVOLUTION SALON DAY SPA, LLC","1625 N State Street",null,"Orem","Utah","(801) 226-2029","Mary Ann Thoresen","2011-03-08","Boss","Zach Clegg"]
["Dollar Cuts","103 N. West State Rd.",null,"American Fork","Utah",null,null,"2011-03-10","Colonial"]
["CLEGG AUTOMOTIVE MACHINE","1599 W Center Street",null,"Orem","Utah","(801) 225-7554","Earl Clegg","2011-03-10",null,"Zach Clegg"]
["L.A. Nails","456 E. State ste. 1000",null,"American Fork","Utah",null,null,"2011-03-11","Boss","Zach Clegg"]
["K-MART CORP #3096","475 N State Street",null,"Orem","Utah","(801) 224-0234","Jolene Lecheminant","2011-03-11","Dixie Fire","Zach Clegg"]
["PEBBLES IN MY POCKET, INC.","1132 S State Street",null,"Orem","Utah","(801) 224-1857","Brenda Birrell","2011-03-11","Taylor's","Zach Clegg"]
["Pro Signs","1034 S. State St.",null,"Orem","Utah","801-765-0039",null,"2011-03-12","Boss","Zach Clegg"]
["la Pequinita","1102 S. State St.",null,"Orem","Utah",null,null,"2011-03-12","Boss","Zach Clegg"]
["HAAGA'S MATTRESS","1032 S State Street",null,"Orem","Utah","(801) 802-6050","Brad Haaga","2011-03-12","Boss","Zach Clegg"]
["IMAGINE REAL PEACE SMOKE SHOP","1036 S State Street",null,"Orem","Utah","(801) 687-6450","Brandon Marostica","2011-03-12","Boss","Zach Clegg"]
["DRESSED IN WHITE","236 E University Parkway",null,"Orem","Utah","(801) 802-9511","Janice Heilner","2011-03-12","Utah Fire","Matt Wald"]
["Sally's Beauty Supply","468 N. 990 W. ",null,"American Fork","Utah",null,null,"2011-03-13","FirePro","Zach Clegg"]
["General & Cosmetic","60 E. State St.",null,"Pleasant Grove","Utah",null,null,"2011-03-14","Taylor's ","Zach Clegg"]
["Galaxie Lighting","212 S. 1060 W. ",null,"Lindon","Utah",null,null,"2011-03-15",null,"Zach Clegg"]
["ACCESS TECHNOLOGY SOLUTIONS, LC","932 N State Street #2",null,"Orem","Utah","(801) 420-9200","David Boyle","2011-03-15",null,"Zach Clegg"]
["SALMON PHARMACY","450 W 800 North",null,"Orem","Utah","(801) 225-2150","Gary Nakken","2011-03-15","Boss","Zach Clegg"]
["ELASE OF OREM, INC","160 E University Parkway Ste.L",null,"Orem","Utah","(801) 229-2229","Barbara Brinton","2011-03-15","Boss","Matt Wald"]
["JPL COMPUTER SERVICES OF UTAH","418 N State Street",null,"Orem","Utah","(801) 226-1892","Perri Bird","2011-03-16","Taylor's","Zach Clegg"]
["SHOE CARNIVAL #417","305 E University Parkway",null,"Orem","Utah","(812) 867-6471","Rusty Suiters","2011-03-17","AAA","Zach Clegg"]
["ENVISION HOME HEALTH, LLC","31 S 400 West",null,"Orem","Utah","(801) 225-7971","Greg Atwood","2011-03-17","Taylor's","Zach Clegg"]
["Knights","1200 E. Main ST.",null,"Lehi","Utah",null,null,"2011-03-20","Colonial","Zach Clegg"]
["BATTERIES PLUS","388 W University Parkway",null,"Orem","Utah","(801) 764-0444","Doug Marrott","2011-03-20","State Fire","Zach Clegg"]
["ACCURATE HEARING CLINICS & AUDIOLO","3216 N UNIVERSITY AVE",null,"Provo","Utah","(801)374-8346","BACHER, RYAN K","2011-03-20","Boss","Zach Clegg"]
["Healthcare","480 N. Main",null,"Logan","Utah",null,null,"2011-03-21","Cache Valley","Zach Clegg"]
["Dollar Cuts ","1400 N. 500 E.",null,"Logan","Utah","Zach Clegg",null,"2011-03-21","Cache Valley","Zach Clegg"]
["Dreamz Salon","252 W. Main St.",null,"Lehi","Utah",null,null,"2011-03-22","Boss","Zach Clegg"]
["Matrix Signs","35 W. Main St.",null,"Lehi","Utah",null,null,"2011-03-22",null,"Zach Clegg"]
["Victor's Tire","Center St. State",null,"Lehi","Utah",null,null,"2011-03-22",null,"Zach Clegg"]
["Kwal Paints","176 W. State Rd.",null,"American Fork","Utah",null,null,"2011-03-24","Utah Fire","Zach Clegg"]
["COLOR ME MINE","5033 N EDGEWOOD DR",null,"Provo","Utah","(801)434-4848","BKS CERAMICS LLC","2011-03-24","Boss","Zach Clegg"]
["DANCE WORKS","3228 N UNIVERSITY AVE",null,"Provo","Utah","(801)375-4622","BROOKS, NATALIE","2011-03-24","Boss","Zach Clegg"]
["JJ's Nail Academy","1700 N. State ST. ",null,"Provo","Utah",null,null,"2011-03-24","Taylor's","Zach Clegg",2]
["Bridal Center","235 N. University Avenue",null,"Provo","Utah",null,null,"2011-03-24","Taylor's","Zach Clegg",2]
["FABRIC WAREHOUSE #1376","266 N State Street",null,"Orem","Utah","(801) 226-8425","Fabric Warehouse #376","2011-03-26","Firetrol","Zach Clegg"]
["MONARCH HONDA","398 W 800 North",null,"Orem","Utah","(801) 224-4070","Mike Nuttall","2011-03-27",null,"Zach Clegg"]
["FABRIC MILL II, INC.","414 E 1400 South",null,"Orem","Utah","(801) 225-3123","David Skinner","2011-03-28","Taylor's","Matt Wald"]
["Durfey's Dry Cleaners","286 W. Main St.",null,"American Fork","Utah",null,null,"2011-03-30","Boss","Zach Clegg"]
["American Fork Chiropractic","98 N. West State Rd.",null,"American Fork","Utah",null,null,"2011-03-30","Boss","Zach Clegg"]
["Dean Insurance","Main St. State St. 17",null,"American Fork","Utah","801-763-1313",null,"2011-03-30","Boss","Zach Clegg",2]
["Realty Advantage","Main St. State St. 491",null,"American Fork","Utah",null,null,"2011-03-30",null,"Zach Clegg",2]
["Alliance Clinical","Main St. State St. 71",null,"American Fork","Utah","801-763-7775",null,"2011-03-30","Boss","Zach Clegg",2]
["American Family Insurance","238 E. State St.",null,"Pleasant Grove","Utah","801-785-5454",null,"2011-03-30","Boss","Zach Clegg"]
["Jones Dental Care","597 S Pleasant Grove Blvd # 12",null,"Pleasant Grove","Utah","796-3535",null,"2011-03-30","Boss","Zach Clegg"]
["Aspen Salon","322 S. State St. ",null,"Pleasant Grove","Utah","801-785-6677",null,"2011-03-30","Taylor's ","Zach Clegg"]
["House of Ivins","650 East. State ",null,"American Fork","Utah","801-756-2460",null,"2011-04-01",null,"Zach Clegg"]
["Our little store","50 w. Main St.",null,"American Fork","Utah",null,null,"2011-04-01","Fred's","Zach Clegg"]
["Kiewit","1 W. Main St.",null,"American Fork","Utah",null,null,"2011-04-01",null,"Zach Clegg"]
["Kawasak","260 E. Main St.",null,"American Fork","Utah",null,null,"2011-04-01",null,"Zach Clegg",2]
["Mall Insurance","Main St. State St. 57",null,"American Fork","Utah","801-756-3503",null,"2011-04-01",null,"Zach Clegg",2]
["MWA","50 W. Main St.",null,"Lehi","Utah",null,null,"2011-04-01",null,"Zach Clegg"]
["Forget Me Not","785 East 200 South",null,"Lehi","Utah",null,null,"2011-04-01",null,"Zach Clegg"]
["Cricket","1480 N. Main",null,"Logan","Utah",null,null,"2011-04-01","New","Zach Clegg"]
["Protective","500 N. Main",null,"Logan","Utah",null,null,"2011-04-01","Packer's","Zach Clegg"]
["Liquid Assets","675 N. 1200 West",null,"Orem","Utah",null,null,"2011-04-01",null,"Zach Clegg"]
["BECCA'S PET SALON","327 E 1200 South 5",null,"Orem","Utah","(801) 221-0903","Rebecca Smith","2011-04-01",null,"Zach Clegg"]
["WESTERN SAW AND SMALL ENGINE REPAIR","1700 N State Street",null,"Orem","Utah","(801) 224-1998","Brad Holdaway","2011-04-01","Taylor's","Zach Clegg"]
["DIANE'S WIG SHOP","345 E University Parkway",null,"Orem","Utah","(801) 224-5070","Diane Thompson","2011-04-01","Golden Spike","Zach Clegg"]
["MR. E'S SPORT CARDS & COLLECTIBLES","720 S State Street",null,"Orem","Utah","(801) 367-0287","Rodney Eastman","2011-04-01",null,"Zach Clegg"]
["TUESDAY MORNING, INC.  #276","123 S State Street",null,"Orem","Utah","(801) 226-4194","Jody Ford","2011-04-01","FirePro","Zach Clegg"]
["The Dentist","238 E. State St.",null,"Pleasant Grove","Utah","801-796-7779",null,"2011-04-01",null,"Zach Clegg"]
["S&J Automotive","330 W. 200 S.",null,"Pleasant Grove","Utah","801-785-4094",null,"2011-04-01","Colonial","Zach Clegg"]
["Christensen Truck Sales","1300 W. State St. ",null,"Pleasant Grove","Utah",null,null,"2011-04-01",null,"Zach Clegg",1,8]
["JENNY CRAIG OPER INC #505","2250 N UNIVERSITY PKWY STE 40",null,"Provo","Utah","(801)373-1447","JENNY CRAIG WEIGHT CENTRES","2011-04-01","Fire Suppression","Zach Clegg"]
["Carniceria","250 N. 100 W.",null,"Provo","Utah",null,null,"2011-04-01","Boss","Zach Clegg"]
["Envisio Express","250 N. 100 W.",null,"Provo","Utah",null,null,"2011-04-01","Boss","Zach Clegg"]
["Ingrid's Salon & Boutique","250 N. 100 W.",null,"Provo","Utah",null,null,"2011-04-01","Boss","Zach Clegg"]
["B&G pharmacy","280 W. Center St.",null,"Provo","Utah",null,null,"2011-04-01","Taylor's","Zach Clegg",2]
["Cricket","178 W. Center St.",null,"Orem","Utah",null,null,"2011-04-04","Byrd's","Zach Clegg"]
["CHECK INTO CASH","900 N State Street",null,"Orem","Utah","(801) 765-1290","Mitch Kautzmann","2011-04-10",null,"Zach Clegg"]
["RADIO SHACK #4248","1466 N State Street",null,"Orem","Utah","(801) 765-1589","Brent Casper","2011-04-11","FirePro","Zach Clegg"]
["Onyx Nails","115 E. 1400 N.",null,"Logan","Utah",null,null,"2011-04-13","Cache Valley","Zach Clegg"]
["Pic a Part","255 S. Geneva Rd.",null,"Orem","Utah",null,null,"2011-04-15",null,"Zach Clegg"]
["Bike Peddler","28 E. Main St.",null,"American Fork","Utah","801-756-5014",null,"2011-04-25",null,"Zach Clegg"]
["Big Boy","730 N. State St.",null,"Lindon","Utah",null,null,"2011-04-27",null,"Zach Clegg"]
["Aamco","95 W. Main St.",null,"American Fork","Utah",null,null,"2011-05-01",null,"Zach Clegg"]
["Orthotime","101 North 1200 East",null,"Lehi","Utah",null,null,"2011-05-01",null,"Zach Clegg"]
["Saratoga Jewlery","550 N. State St.",null,"Lindon","Utah","801-785-3888",null,"2011-05-01",null,"Zach Clegg"]
["Tri Tex","75 N. Mountain Way Drive",null,"Orem","Utah",null,null,"2011-05-01",null,"Zach Clegg"]
["DAVID'S BRIDAL, INC. #290","301 E University Parkway",null,"Orem","Utah","(770) 965-6231",null,"2011-05-01","AAA","Zach Clegg"]
["Sports Clips","254 W. University Parkway",null,"Orem","Utah",null,null,"2011-05-01","Utah Fire","Zach Clegg"]
["SPORT CLIPS","254 E University Parkway",null,"Orem","Utah","(801) 434-7050","Minon Francis","2011-05-01","Utah Fire","Matt Wald"]
["Primerica","597 S Pleasant Grove Blvd ",null,"Pleasant Grove","Utah",null,null,"2011-05-01","Colonial","Zach Clegg"]
["Scott Hancock","1 S. Main St.",null,"Pleasant Grove","Utah","801-785-8317",null,"2011-05-01","Taylor's","Zach Clegg"]
["SUPERCUTS #9718","2255 N UNIVERSITY PKWY APT 8",null,"Provo","Utah","(801)356-2731","SUPERCUTS CORP SHOPS, INC","2011-05-01","Cintas","Matt Wald"]
["CRICKET COMMUNICATIONS INC","2275 N UNIVERSITY PKWY",null,"Provo","Utah","(858)882-6347","CRICKET COMMUNICATIONS INC.","2011-05-01","Boss","Matt Wald"]
["Huishi's","1775 N. State St. ",null,"Provo","Utah",null,null,"2011-05-01","Associated Fire","Zach Clegg",2]
["Johnny's Barber Shop","200 N. 30 W. ",null,"Provo","Utah",null,null,"2011-05-01","New","Zach Clegg",1]
["Kelsch Shoe Repair","250 N. 100 W.",null,"Provo","Utah",null,null,"2011-05-01",null,"Zach Clegg",1]
["Medstar","1500 N. State",null,"Lehi","Utah",null,null,"2011-05-04","Colonial","Zach Clegg"]
["Lynne's Wig Boutique","194 W State Rd.",null,"American Fork","Utah","763-1633",null,"2011-05-05","Associated Fire","Zach Clegg"]
["AG TIRE SHOP","260 W 990 North",null,"Orem","Utah","(801) 225-7788","Ansela Felix","2011-05-06",null,"Zach Clegg"]
["Office Max","152 N. State Street",null,"Orem","Utah",null,null,"2011-05-07","Firetrol","Zach Clegg"]
["UPS STORE, THE #3977","3214 N UNIVERSITY AVE",null,"Provo","Utah","(801)375-1700","DEWEY, ROYCE C.","2011-05-07","U.S. Fire Shield","Zach Clegg"]
["Powell Auto","Center St. Main",null,"Lehi","Utah",null,null,"2011-05-13",null,"Zach Clegg"]
["DOUGLAS K ARTHUR DDS","169 W 800 North",null,"Orem","Utah","(801) 224-1997","Douglas Arthur","2011-05-15",null,"Zach Clegg"]
["Neil's Motel","600 S. Main St.",null,"Heber City","Utah",null,null,"2011-05-17","Byrd's","Zach Clegg",2]
["SBR SPORTS, LLC","149 W 400 North",null,"Orem","Utah","(801) 225-0076","Kyle Isaacs","2011-05-17","Utah Fire","Zach Clegg"]
["Precious Pet","471 E. 200 S.",null,"American Fork","Utah",null,null,"2011-06-01","Boss","Zach Clegg"]
["Family Auto & RV","74 S. 500 W. ",null,"American Fork","Utah","801-931-1914",null,"2011-06-01","New","Zach Clegg",1]
["Mountainland Auto","400 N. Main ",null,"Heber City","Utah",null,null,"2011-06-01","New","Zach Clegg",2]
["Heber Valley Lighting","350 S. Main St.",null,"Heber City","Utah",null,null,"2011-06-01",null,"Zach Clegg",1]
["Pampered Pets","137 E. 1600 N.",null,"Logan","Utah",null,null,"2011-06-01","Cache Valley","Zach Clegg"]
["SHERWIN-WILLIAMS AUTOMOTIVE FINISHES CORP.","621 N 1200 West",null,"Orem","Utah","(801) 486-5691","John Wayne","2011-06-01",null,"Zach Clegg"]
["Guns & Ammo","950 N. 1200 West",null,"Orem","Utah",null,null,"2011-06-01",null,"Zach Clegg"]
["CERTIFIED TIRE & SERVICE, INC.","1549 N State Street 101",null,"Orem","Utah","(801) 426-5535","Douglas Ulrich","2011-06-01",null,"Zach Clegg"]
["VELDON'S CLEANERS","1549 N State Street #110",null,"Orem","Utah","(801) 225-9173","Veldon Coleman","2011-06-01",null,"Zach Clegg"]
["TIMBERLINE, INC.","915 N State Street",null,"Orem","Utah","(801) 226-8786","Larry Brown","2011-06-01",null,"Zach Clegg"]
["CAR DOCTOR OF OREM, LLC, THE","102 S State Street",null,"Orem","Utah","(801) 226-7543","Maria Llamas","2011-06-01",null,"Zach Clegg"]
["CONSOLIDATED FASTENERS","87 S Mountain Way Drive",null,"Orem","Utah","(801) 225-5253","Lawrence Larson","2011-06-01",null,"Zach Clegg"]
["GARY'S PERFORMANCE LLC","112 E 400 South",null,"Orem","Utah","(801) 224-1153","Jason Taylor","2011-06-01",null,"Zach Clegg"]
["FORREST MOTORS LLC","925 S State Street",null,"Orem","Utah","(801) 427-9977","Forrest Hale","2011-06-01","Taylor's","Zach Clegg"]
["GERMAN AUTO SHOP, LLC, THE","237 W 700 North",null,"Orem","Utah","(801) 225-7099","Wesley Anderson","2011-06-01","Boss","Zach Clegg"]
["Timpanogas Cyclery","665 W. State St.",null,"Pleasant Grove","Utah",null,null,"2011-06-01",null,"Zach Clegg"]
["Grease Monkey","850 W. State St.",null,"Pleasant Grove","Utah",null,null,"2011-06-01",null,"Zach Clegg"]
["Relaxing Remed","405 E. state St.",null,"American Fork","Utah",null,null,"2011-06-06","Boss","Zach Clegg"]
["DOLLAR TREE STORES #2605","501 N State Street",null,"Orem","Utah","(801) 461-9888","John Erickson","2011-06-06","AAA","Zach Clegg"]
["Evergreen Square","905 S. State",null,"Orem","Utah",null,null,"2011-06-11","Taylor's","Zach Clegg"]
["UPS Store","140 W. PG Boulevard",null,"Pleasant Grove","Utah",null,null,"2011-06-11","Boss","Zach Clegg"]
["SAS SHOES","218 E University Parkway",null,"Orem","Utah","(801) 225-7489","Rob Measom","2011-06-13","State Fire","Matt Wald"]
["Office Max","641 S. 500 E.",null,"American Fork","Utah",null,null,"2011-06-14","Fire Suppression","Zach Clegg"]
["SEAGULL BOOK & TAPE, INC. #1","111 S State Street",null,"Orem","Utah","(801) 226-3833","Daniel Burgess","2011-06-15","Utah Fire","Zach Clegg"]
["Copytec","185 W. 200 S.",null,"Pleasant Grove","Utah",null,null,"2011-06-15","Colonial","Zach Clegg"]
["Ace hardware","330 s. State St.",null,"Pleasant Grove","Utah",null,null,"2011-06-15","Colonial","Zach Clegg"]
["Jack and Jill Bowling","700 East. Bamberger",null,"American Fork","Utah","(801) 756-6097",null,"2011-06-26","Fire Suppression","Zach Clegg",null,null,"Kitchen"]
["AARON'S SALES & LEASE","170 S State Street",null,"Orem","Utah","(801) 434-7500","Marcial Blandon","2011-06-30",null,"Zach Clegg"]
["Little Things Mean a lot","457 E. State ",null,"American Fork","Utah",null,null,"2011-07-01",null,"Zach Clegg"]
["Rocky Mountain Glass","300 E. 70 N.",null,"American Fork","Utah",null,null,"2011-07-01",null,"Zach Clegg"]
["EZ Loan","300 E. 70 N.",null,"American Fork","Utah",null,null,"2011-07-01",null,"Zach Clegg"]
["Salon Nichole","23 S. Center",null,"American Fork","Utah","669-1640",null,"2011-07-01",null,"Zach Clegg"]
["Bert's Waterworks","21 S. Center",null,"American Fork","Utah","756-5846",null,"2011-07-01",null,"Zach Clegg"]
["Jeff Bradshaw","175 N. Main ",null,"Heber City","Utah",null,null,"2011-07-01","Boss","Zach Clegg",2]
["Second Hand Treasures","115 W. Main St.",null,"Lehi","Utah",null,null,"2011-07-01","New","Zach Clegg",1]
["Batteries Plus","785 East 200 South",null,"Lehi","Utah",null,null,"2011-07-01","Boss","Zach Clegg"]
["Cascade Dental","600 E. Main",null,"Lehi","Utah",null,null,"2011-07-01",null,"Zach Clegg"]
["Larkin Tire","850 N. State St.",null,"Lindon","Utah","(801) 427-8620",null,"2011-07-01",null,"Zach Clegg"]
["Get Waxed","360 N. State St. G",null,"Lindon","Utah",null,null,"2011-07-01","Boss","Zach Clegg"]
["Kwal Paint","200 E. 1600 N.",null,"Logan","Utah",null,null,"2011-07-01","Cache Valley","Zach Clegg"]
["TANDY LEATHER #171","541 N 1200 West",null,"Orem","Utah","801-802-6360","Sheralynn Parcell","2011-07-01",null,"Zach Clegg"]
["CROSSPOINTE DENTAL, INC","1643 N State Street",null,"Orem","Utah","(801) 224-7337","Damon Swenson","2011-07-01",null,"Zach Clegg"]
["TINT PRO","762 N 400 West",null,"Orem","Utah","(801) 225-4637","Brandon Layton","2011-07-01",null,"Zach Clegg"]
["WASATCH SQUARE","504 W 1400 North",null,"Orem","Utah","(801) 225-0580","Danean Hutchings","2011-07-01",null,"Zach Clegg"]
["Master Care Car Service","930 N. State Street",null,"Orem","Utah",null,null,"2011-07-01",null,"Zach Clegg"]
["VALLEY TRANSMISSIONS, LLC","1031 N State Street # 5",null,"Orem","Utah","(801) 815-4884","Jon Johnson","2011-07-01",null,"Zach Clegg"]
["CLASSIC SKATING CENTER","250 S State Street",null,"Orem","Utah","(801) 224-5016","Brent Henderson","2011-07-01","fenix","Zach Clegg"]
["ILASH INC DBA THE I BAR","1015 S State Street",null,"Orem","Utah","(877) 509-5274","William Boswell","2011-07-01",null,"Zach Clegg"]
["INSPECTION STATION, THE","946 S State Street",null,"Orem","Utah","(801) 225-9595","Daniel Davidson","2011-07-01",null,"Zach Clegg"]
["CLIPITZ SALON","748 S State Street",null,"Orem","Utah","(801) 224-7222","Cynthia Rowley","2011-07-01",null,"Zach Clegg"]
["ESCAPE SALON, INC,","345 E University Parkway",null,"Orem","Utah","(801) 802-9797","Matthew Wright","2011-07-01",null,"Zach Clegg"]
["NAIL EXPO, INC,, THE","95 S State Street",null,"Orem","Utah","(801) 221-3787","Huy Le","2011-07-01","Boss","Zach Clegg"]
["Will's Canyon Stop","mouth of provo canyon",null,"Orem","Utah",null,null,"2011-07-01","Golden Spike","Zach Clegg"]
["NEW NAILS INC","2255 N UNIVERSITY PKWY STE 41",null,"Provo","Utah","(801)373-9955","NGUYEN, DIEP KHAC","2011-07-01",null,"Matt Wald"]
["Big Lots","702 E. State Rd.",null,"American Fork","Utah",null,null,"2011-07-02","Simplex Grinnell","Zach Clegg"]
["4 SEASONS POWER TOYS","1169 N State Street",null,"Orem","Utah","(801) 224-8697","Steve Tholl","2011-07-05",null,"Zach Clegg"]
["OREM QUICK LUBE","1140 N State Street",null,"Orem","Utah","(801) 362-8173","Ara Bekearian","2011-07-05",null,"Zach Clegg"]
["STANDARD PLUMBING SUPPLY COMPANY","1486 W Center Street",null,"Orem","Utah","(801) 224-7007","Scott Baker","2011-07-05","Utah Fire","Zach Clegg"]
["BIG 5 SPORTING GOODS","1290 S State Street",null,"Orem","Utah","(801) 426-9762","Charles Ruesch","2011-07-05","Simplex Grinnell","Zach Clegg"]
["GUNNIES, INC.","396 S State Street",null,"Orem","Utah","(801) 226-7080","Pamela Harrison","2011-07-06","Taylor's","Zach Clegg"]
["MATTRESS & FURNITURE OUTLET, INC.","1066 S State Street",null,"Orem","Utah","(801) 225-5363","Shane Knight","2011-07-06","Colonial","Zach Clegg"]
["ZURCHERS PARTY & WEDDING STORES","340 E 800 South",null,"Orem","Utah","(801) 734-6400","Molly Zurcher","2011-07-06","Colonial","Zach Clegg"]
["Below's Glass","200 S. 90 w.",null,"Heber City","Utah",null,null,"2011-07-08","Boss","Zach Clegg",2]
["Hookah Collection","200 W. Center St.",null,"Provo","Utah",null,null,"2011-07-08","Boss","Zach Clegg",2]
["Mexican Grocery","55 W. 100 S.",null,"Heber City","Utah",null,null,"2011-07-10","Boss","Zach Clegg",2]
["All That Stuff in the Barn","100 E. 100 N.",null,"Midway","Utah",null,null,"2011-07-10","Boss","Zach Clegg"]
["ULTIMATE TAN","1128 S State Street",null,"Orem","Utah","(801) 225-4004","Haeli Cooper","2011-07-10","Boss","Zach Clegg"]
["TABY BAGS","1106 S State Street",null,"Orem","Utah","(801) 734-0974","Alex Davila","2011-07-11","Boss","Zach Clegg"]
["DESERET BOOK COMPANY #2","230 E University Parkway",null,"Orem","Utah","(801) 734-1330","Gregg Finn","2011-07-12","Golden Spike","Matt Wald"]
["La Chiquita","399 E. State",null,"American Fork","Utah",null,null,"2011-07-13","State Fire","Zach Clegg"]
["Steven Braithwaite","218 N. West State Rd.",null,"American Fork","Utah",null,null,"2011-07-14","Utah Fire","Zach Clegg"]
["Ostheller","1500 N. State",null,"Lehi","Utah",null,null,"2011-07-14","Boss","Zach Clegg",2]
["RAINCHECK CORPORATION","671 N State Street",null,"Orem","Utah","(801) 229-2550","Ann Pyne","2011-07-14","FirePro","Zach Clegg"]
["Professionails","2500 N. University PKWY # 46",null,"Provo","Utah",null,null,"2011-07-14","Boss","Matt Wald"]
["LIFE SKILLS VOCATIONAL CENTER","108 N 1200 West",null,"Orem","Utah","(801) 977-3732","Jeanie Pettit","2011-07-15",null,"Zach Clegg"]
["The Crystal Ray","661 W. State st.",null,"Pleasant Grove","Utah",null,null,"2011-07-15",null,"Zach Clegg"]
["Classy Uniforms","661 W. State st.",null,"Pleasant Grove","Utah",null,null,"2011-07-15","Boss","Zach Clegg"]
["World Wide Book Drive","104 N. 1200 W.",null,"Orem","Utah",null,null,"2011-07-16",null,"Zach Clegg"]
["Iguanas","1211 N State St.",null,"Orem","Utah",null,null,"2011-07-17","Boss","Zach Clegg"]
["GRANITE GUYZ","1211 N State Street",null,"Orem","Utah","(801) 722-8934","Jeffrey Chatterley","2011-07-17","Boss","Zach Clegg"]
["HOLLIMAN SIDING & HOME IMPROVEMENT","1292 W 400 South",null,"Orem","Utah","(801) 375-6060","David Holliman","2011-07-20",null,"Zach Clegg"]
["SOS Staffing","155 E. 1400 N.",null,"Logan","Utah",null,null,"2011-07-21","Cache Valley","Zach Clegg"]
["Kutting Edge Salon","155 E. 1400 N.",null,"Logan","Utah",null,null,"2011-07-21","Cache Valley","Zach Clegg"]
["CHAPTERS USED BOOKS","858 S State Street",null,"Orem","Utah","(801) 225-2665","Rick Horsley","2011-07-25","Boss","Zach Clegg"]
["Leader of the Pack","150 S. State St. Suite 3 ",null,"Lindon","Utah","(801) 922-4223",null,"2011-07-26",null,"Zach Clegg"]
["TURBO LABRATORIES","1416 W Center Street",null,"Orem","Utah","(801) 372-6610","Joe Sim","2011-07-27",null,"Zach Clegg"]
["BEST BUY STORES LP #773","309 E University Parkway",null,"Orem","Utah","(801) 225-4922","John Davison","2011-07-30","Delta","Zach Clegg"]
["Oriental Market","286 N. State St.",null,"American Fork","Utah",null,null,"2011-08-01","Boss","Zach Clegg"]
["Signs Now","433 E State",null,"American Fork","Utah",null,null,"2011-08-01",null,"Zach Clegg"]
["Rock Hair","24 S. Center St.",null,"American Fork","Utah",null,null,"2011-08-01",null,"Zach Clegg"]
["Humphries","54 E. Main",null,"American Fork","Utah","801-756-3566",null,"2011-08-01","Colonial","Zach Clegg"]
["Stogies","101 N. West State Rd.",null,"American Fork","Utah",null,null,"2011-08-01","Colonial","Zach Clegg",2]
["Summit England","55 W. Center St",null,"Heber City","Utah",null,null,"2011-08-01","New","Zach Clegg",1]
["Main St. Interiors","300 W. Main",null,"Lehi","Utah",null,null,"2011-08-01",null,"Zach Clegg"]
["Vern's Inc.","514 E. State ",null,"Lehi","Utah",null,null,"2011-08-01",null,"Zach Clegg",2]
["schoonover","1500 N. State St.",null,"Lehi","Utah",null,null,"2011-08-01",null,"Zach Clegg",2]
["Allstate","785 East 200 South",null,"Lehi","Utah",null,null,"2011-08-01",null,"Zach Clegg"]
["Kid to Kid","155 S. State St.",null,"Lindon","Utah","801-796-8667",null,"2011-08-01",null,"Zach Clegg"]
["Bella Boutique","915 N. State St.",null,"Lindon","Utah",null,null,"2011-08-01",null,"Zach Clegg"]
["Dentists","1350 N. 600 E.",null,"Logan","Utah",null,null,"2011-08-01","Cache Valley","Zach Clegg"]
["RICK'S MUFFLER","227 W 990 North",null,"Orem","Utah","(801) 225-5404","Richard Elies","2011-08-01",null,"Zach Clegg"]
["AUTOBAHN SERVICE CENTER","1358 W 400 South",null,"Orem","Utah","(801) 374-0012","Gary Cheever","2011-08-01",null,"Zach Clegg"]
["JOA NAILS","394 S State Street",null,"Orem","Utah","(801) 224-7353","Alan Rosen","2011-08-01",null,"Zach Clegg"]
["CENTRO LATINO","284 N State Street",null,"Orem","Utah","(801) 764-0004","Sergio Sosa","2011-08-01","Boss","Zach Clegg"]
["QUIK CHECK EXCHANGE","270 N State Street",null,"Orem","Utah","(801) 229-2029","Emily Peterson","2011-08-01","Boss","Zach Clegg"]
["1ST ORIENTAL MARKET, LLC","286 N State Street",null,"Orem","Utah","(801) 362-7899","Kyunglim Dickerson","2011-08-01","Boss","Zach Clegg"]
["UTAH VALLEY FENCING ACADEMY, LLC","728 S State Street",null,"Orem","Utah","(801) 477-1774","Evelyn McNeff","2011-08-01",null,"Zach Clegg"]
["Visage Skin & Beauty","663 W. State St.",null,"Pleasant Grove","Utah",null,null,"2011-08-01",null,"Zach Clegg"]
["Hobby Tractors","660 W. State St.",null,"Pleasant Grove","Utah",8017858605,null,"2011-08-01",null,"Zach Clegg"]
["Brigham Larson Piano's","185 W. 200 S.",null,"Pleasant Grove","Utah","801-830-0011",null,"2011-08-01","New","Zach Clegg"]
["Images Salon","100 E. Center St.",null,"Pleasant Grove","Utah",null,null,"2011-08-01","Boss","Zach Clegg"]
["Evans Barber","Center St. Main",null,"Pleasant Grove","Utah",null,null,"2011-08-01","Boss","Zach Clegg"]
["Peloqueria","440 N. University Avenue",null,"Provo","Utah",null,null,"2011-08-01",null,"Zach Clegg",2]
["US Nails","648 East State St. E",null,"American Fork","Utah",null,null,"2011-08-02",null,"Zach Clegg"]
["Mod Bod","218 N. West State Rd.",null,"American Fork","Utah",null,null,"2011-08-02","Colonial","Zach Clegg"]
["The Mattess Department","78 N. West State Rd.",null,"American Fork","Utah",null,null,"2011-08-02","Boss","Zach Clegg"]
["Jones Paint & Glass","200 N. 100 W.",null,"Provo","Utah",null,null,"2011-08-02","Utah Fire","Zach Clegg"]
["HOBBY LOBBY CREATIVE CENTER #448","360 W University Parkway",null,"Orem","Utah","(801)    -","Perry Tirrell","2011-08-04","Firetrol","Zach Clegg"]
["DISCOVERY HOUSE UC, INC.","714 S State Street",null,"Orem","Utah","(801) 426-6565","Mark Morgan","2011-08-05","Taylor's","Zach Clegg"]
["Remax","309 E State",null,"American Fork","Utah",null,null,"2011-08-09","Boss","Zach Clegg"]
["Yoly's Beauty Salon","78 N. West State Rd.",null,"American Fork","Utah",null,null,"2011-08-10","Taylor's","Zach Clegg"]
["NCS","115 N. 1200 W.",null,"Orem","Utah",null,null,"2011-08-13","Chapparell","Zach Clegg"]
["Sophia's Special Occasion","352 N. state ",null,"American Fork","Utah",null,null,"2011-08-14",null,"Zach Clegg"]
["Floral Shop","445 E. State",null,"American Fork","Utah",null,null,"2011-08-14","Boss","Zach Clegg"]
["Evergreen Square","879 S State",null,"Orem","Utah",null,null,"2011-08-14","Taylor's ","Zach Clegg"]
["SOPHIA'S SPECIAL OCCASIONS, INC.","353 N State Street",null,"Orem","Utah","(801) 226-1493","Erika Terriquez","2011-08-14",null,"Zach Clegg"]
["D.I.","435 S. 500 E.",null,"American Fork","Utah",null,null,"2011-08-15","Golden Spike","Zach Clegg"]
["MOUNTAIN LOAN CENTERS","1272 N State Street",null,"Orem","Utah","(702) 290-9403","Shaun Bawa","2011-08-15",null,"Zach Clegg"]
["D.B.W. MARKETING","1376 W 130 South",null,"Orem","Utah","(801) 221-7701","Don Willardson","2011-08-15",null,"Zach Clegg"]
["Crest General Store","516 N. State St.",null,"Orem","Utah",null,null,"2011-08-15","Taylor's ","Zach Clegg"]
["ABSOLUTE AUTOMOTIVE AND ACCESSORIES, LLC","558 N 100 West",null,"Orem","Utah","(801) 471-0404","Luke Harrison","2011-08-15","Boss","Zach Clegg"]
["Napa Auto Parts","330 s. State St.",null,"Pleasant Grove","Utah",null,null,"2011-08-15","Taylor's ","Zach Clegg"]
["Book of Mormon Tours","912 S. State",null,"Orem","Utah",null,null,"2011-08-17",null,"Zach Clegg"]
["Peerless Beauty","40 N. 600 W. ",null,"American Fork","Utah",null,null,"2011-08-18","Associated Fire","Zach Clegg"]
["SUPREME NAILS","59 W Center Street",null,"Orem","Utah","(801) 431-0676","Thanh Ngo","2011-08-18","Boss","Zach Clegg"]
["Europe Nail","785 East 200 South",null,"Lehi","Utah",null,null,"2011-08-20","Boss","Zach Clegg"]
["ROYAL NAILS III","333 E University Parkway",null,"Orem","Utah","(801) 434-7176","Jennie Tran","2011-08-20",null,"Zach Clegg"]
["SENSUOUS SANDWICH","378 E University Parkway",null,"Orem","Utah","(801) 225-9475","Almond Bethers","2011-08-22",null,"Matt Wald"]
["FARNELL CARPETS","204 E 400 South",null,"Orem","Utah","(801) 224-0246","Brian Farnell","2011-08-25",null,"Zach Clegg"]
["Renu Life","155 S. State St. ",null,"Lindon","Utah","801 494 7675","valerie","2011-08-26",null,"Zach Clegg"]
["7 CIRCLES, LLC","533 N 1200 West",null,"Orem","Utah","(801) 477-0031","Andrew Horton","2011-08-26",null,"Zach Clegg"]
["COLORADO KERNEL, INC.","569 N 1200 West",null,"Orem","Utah","(801) 224-1081","Deric Glissmeyer","2011-08-26",null,"Zach Clegg"]
["WORKCARE OREM, LLC","601 N 1200 West",null,"Orem","Utah","(801) 224-4211","Mark Anderson","2011-08-26",null,"Zach Clegg"]
["Recreation Outlet","670 E. state",null,"American Fork","Utah",null,null,"2011-08-28","Boss","Zach Clegg"]
["BLESS AUTOMOTIVE,LLC","330 W 800 North",null,"Orem","Utah","(801) 623-0862","Jorge Bless","2011-08-28",null,"Zach Clegg"]
["DEAN'S STYLE SHOP","1212 N State Street #A",null,"Orem","Utah","(801) 224-2316","Mary Gull","2011-08-29",null,"Zach Clegg"]
["Utah Valley Storage","200 S. Geneva Rd.",null,"Orem","Utah",null,null,"2011-08-29",null,"Zach Clegg"]
["Scruples","29 W. Center St.",null,"Orem","Utah",null,null,"2011-08-29",null,"Zach Clegg"]
["Versatility Cell Phone Shop","890 N. State Street",null,"Orem","Utah",null,null,"2011-08-30",null,"Zach Clegg"]
["DOLLAR CUTS #1","882 N State Street",null,"Orem","Utah","(801) 224-3284","Mirna Rodriguez","2011-08-30",null,"Zach Clegg"]
["ROCKY MOUNTAIN RADIATOR, INC.","946 N State Street",null,"Orem","Utah","(801) 224-1766","Martina Harris","2011-08-30",null,"Zach Clegg"]
["Dollar Cuts","314 East State Street",null,"Pleasant Grove","Utah","801-830-1287","Mirna","2011-08-30","Fenix","Zach Clegg"]
["ASPEN SALON INC","3222 N UNIVERSITY AVE",null,"Provo","Utah","(801)375-4247","GARNER, CLINT","2011-08-30","Boss","Zach Clegg"]
["Hapari","69 E. Main St.",null,"American Fork","Utah","801-7569444",null,"2011-09-01",null,"Zach Clegg"]
["Allen's Tuxedos","69 E. Main St.",null,"American Fork","Utah",null,null,"2011-09-01",null,"Zach Clegg"]
["Cash Store","101 NW. State Rd",null,"American Fork","Utah",null,null,"2011-09-01",null,"Zach Clegg",3]
["The Alignment Guy","65 W. State St. ",null,"American Fork","Utah",null,null,"2011-09-01","Colonial","Zach Clegg",2]
["Smoothie King","1438 E Main St",null,"Lehi","Utah",null,null,"2011-09-01",null,"Zach Clegg"]
["Camera Shy","101 North 1200 East",null,"Lehi","Utah","(801) 766-4466",null,"2011-09-01","New","Zach Clegg"]
["Wasatch Auto","181 S. 1200 E.",null,"Lehi","Utah",null,null,"2011-09-01","New","Zach Clegg",1]
["PROP DOC TORCH REPAIR SERVICES, THE","1172 W 675 North",null,"Orem","Utah","(801) 222-0277","Ray Trotter","2011-09-01",null,"Zach Clegg"]
["Cars Now","1000 N State Street",null,"Orem","Utah","801-225-6792","Janise","2011-09-01",null,"Zach Clegg"]
["Pibi Tile","1136 N State Street",null,"Orem","Utah","801-400-8335","roe","2011-09-01","Fenix","Zach Clegg"]
["Minivan Only","145 W. 800 N. ",null,"Orem","Utah",null,null,"2011-09-01",null,"Zach Clegg"]
["INDUSTRIAL SUPPLY COMPANY, INC.","1418 W Center Street",null,"Orem","Utah","801-541-7288","Randy","2011-09-01",null,"Zach Clegg"]
["STOGIES, INC.","695 N State Street",null,"Orem","Utah","(801) 734-1301","Mark Gressman","2011-09-01","Colonial","Zach Clegg"]
["Glass Images","1800 S. Columbia Ln.",null,"Orem","Utah",null,null,"2011-09-01",null,"Zach Clegg",2]
["Pride Signs","524 W. State St.",null,"Pleasant Grove","Utah","801-785-0805",null,"2011-09-01",null,"Zach Clegg"]
["Black Fyre Games","391 S. State St",null,"Pleasant Grove","Utah",null,null,"2011-09-01","New","Zach Clegg"]
["My Family Dentist","76 S. Main St.",null,"Pleasant Grove","Utah","801-785-1777",null,"2011-09-01",null,"Zach Clegg"]
["Photo Boutique","76 S. Main St.",null,"Pleasant Grove","Utah",null,null,"2011-09-01","Boss","Zach Clegg"]
["Main St. Salon","53 S. Main",null,"Pleasant Grove","Utah",null,null,"2011-09-01",null,"Zach Clegg"]
["PG Printers","53 S. Main",null,"Pleasant Grove","Utah",null,null,"2011-09-01",null,"Zach Clegg"]
["TrendXChange","2255 N. University Parkway #50",null,"Provo","Utah",null,null,"2011-09-01","New","Matt Wald"]
["QUIKSILVER FACTORY STORES #805","2255 N UNIVERSITY PKWY STE 22",null,"Provo","Utah","(714)889-2200","MCKNIGHT, BOB ","2011-09-01",null,"Matt Wald"]
["Accident & Injury","1774 N. University Parkway",null,"Provo","Utah",null,null,"2011-09-01","New","Zach Clegg",1]
["The Cocoa Bean","1774 N. University Parkway",null,"Provo","Utah",null,null,"2011-09-01",null,"Zach Clegg",2]
["Poco Loco","1777 N. University Parkway",null,"Provo","Utah",null,null,"2011-09-01",null,"Zach Clegg",2]
["Sara Lee","66 N. West State Rd.",null,"American Fork","Utah",null,null,"2011-09-02","Byrd's","Zach Clegg"]
["One Main Financial","170 W. Center St.",null,"Orem","Utah",null,null,"2011-09-02","fenix","Zach Clegg"]
["HARWARD'S LITTLE GYM","152 W Center Street",null,"Orem","Utah","(801) 226-3800","Randall Harward","2011-09-02","Utah Fire","Zach Clegg"]
["SPRINKLER WORLD OF OREM","152 W Center Street",null,"Orem","Utah","(801) 225-6622","Randall Harward","2011-09-02","Utah Fire","Zach Clegg"]
["Discoteca","380 S. State St. ",null,"Orem","Utah",null,null,"2011-09-05",null,"Zach Clegg"]
["BOSCH KITCHEN CENTER","176 W Center Street",null,"Orem","Utah","(801) 224-1616","Alma Hair","2011-09-05",null,"Zach Clegg"]
["ROBERTS","64 W Center Street",null,"Orem","Utah","(801) 224-3088","Karen Fillmore","2011-09-05","Taylor's","Zach Clegg"]
["ROGER'S VACUUM CENTER, INC.","1208 N State Street",null,"Orem","Utah","(801) 655-1102","Roger Mantz","2011-09-07",null,"Zach Clegg"]
["BOOK BARON","425 S State Street",null,"Orem","Utah","(801) 225-4088","Dyanne Stevens","2011-09-07",null,"Zach Clegg"]
["KWAL-HOWELLS, INC","390 N State Street",null,"Orem","Utah","(801) 225-6600","Jeff Wordle","2011-09-07",null,"Zach Clegg"]
["Radio Shack","987 W. 500 N. ",null,"American Fork","Utah",null,null,"2011-09-08","FirePro","Zach Clegg"]
["Alphagraphics","460 W. 800 N. ",null,"Orem","Utah",null,null,"2011-09-10",null,"Zach Clegg"]
["SUPERIOR TV & SATELLITE","754 N State Street",null,"Orem","Utah","(801) 226-3081","Rick Warenski","2011-09-10","New","Zach Clegg"]
["QUARRY, INC.","2494 N UNIVERSITY PKWY",null,"Provo","Utah","(801)418-0266","MILLER, J PEDERSEN / J","2011-09-10",null,"Matt Wald"]
["Metal Mart","1370 E. Main",null,"Lehi","Utah",null,null,"2011-09-14","Colonial","Zach Clegg"]
["Beaches Tanning","640 East State Rd.",null,"American Fork","Utah","801-701-0246",null,"2011-09-15",null,"Zach Clegg"]
["Utah Mtn. Biking","180 W. Main St.",null,"Lehi","Utah",null,null,"2011-09-15","Golden Spike","Zach Clegg",1,10]
["Shoe Repair","180 W. Main St.",null,"Lehi","Utah",null,null,"2011-09-15","Golden Spike","Zach Clegg",1,10]
["Morgan & Morgan","220 E. Main",null,"Lehi","Utah",null,null,"2011-09-15",null,"Zach Clegg",1,35]
["Lehi Vision","127 E. Main",null,"Lehi","Utah",null,null,"2011-09-15",null,"Zach Clegg"]
["LSS Insurance","169 E. 1600 N.",null,"Logan","Utah",null,null,"2011-09-15","Cache Valley","Zach Clegg"]
["Grant Smith Building","930 S. State ",null,"Orem","Utah",null,null,"2011-09-15","State Fire","Zach Clegg"]
["Wireless City","352 N. State",null,"Orem","Utah",null,null,"2011-09-15","Boss","Zach Clegg"]
["SUMMERHAYS MUSIC/OREM","1006 S State Street",null,"Orem","Utah","(801) 226-1760","Linda Bown","2011-09-15","Boss","Zach Clegg"]
["SALLY BEAUTY COMPANY, LLC  #1552","77 S State Street",null,"Orem","Utah","(801) 223-9141","Ronelle Rosen","2011-09-16","FirePro","Zach Clegg"]
["OGDEN'S CARPET OUTLET OF OREM","374 N State Street",null,"Orem","Utah","(801) 226-1798","Jason Fabrizio","2011-09-17",null,"Zach Clegg"]
["Tunex","142 N. West State Rd. ",null,"American Fork","Utah",null,null,"2011-09-20",null,"Zach Clegg"]
["COZY CLOTHING","2255 N UNIVERSITY PKWY STE 23",null,"Provo","Utah","(801)373-4068","AN, KUIN SIK","2011-09-21","Boss","Matt Wald"]
["Osmond Design","151 E. State",null,"Lehi","Utah",null,null,"2011-09-30","Boss","Zach Clegg"]
["Dry cleaning","200 E. State St.",null,"Lehi","Utah",null,null,"2011-09-30","Boss","Zach Clegg",1]
["Cartler's Auto Repair","665 W. State St.",null,"Pleasant Grove","Utah",null,null,"2011-09-30","Taylor's","Zach Clegg"]
["Joy Nails","120 W. State St.",null,"Pleasant Grove","Utah",null,null,"2011-09-30","Boss","Zach Clegg"]
["Quik Fix","690 W. State St.",null,"Pleasant Grove","Utah",null,null,"2011-09-30","Colonial","Zach Clegg"]
["Divine Modestee","663 W. State St.",null,"Pleasant Grove","Utah",null,null,"2011-09-30","Taylor's ","Zach Clegg"]
["The Alterations","1778 N. University Parkway",null,"Provo","Utah",null,null,"2011-09-30","Boss","Zach Clegg",1]
["Riccar Vaccums","31 N. Main",null,"Heber City","Utah",null,null,"2011-10-01","Utah Fire","Zach Clegg",1,20]
["Scrubs","1350 E. Main",null,"Lehi","Utah",null,null,"2011-10-01",null,"Zach Clegg"]
["UPS Store","770 East Main St",null,"Lehi","Utah",null,null,"2011-10-01",null,"Zach Clegg"]
["Gordon Family Dental","100 N. 300 E. ",null,"Lehi","Utah",null,null,"2011-10-01",null,"Zach Clegg"]
["PJ'S ROLLIN BIG,LLC","754 N 400 West",null,"Orem","Utah","(801) 367-9413","Paul Finch","2011-10-01",null,"Zach Clegg"]
["SAV-MOR AUTO CLINIC, INC.","780 N 400 West",null,"Orem","Utah","(801) 224-2221","Glenn Mitchell","2011-10-01",null,"Zach Clegg"]
["Timpanogas Vision","238 E. State St.",null,"Pleasant Grove","Utah",null,null,"2011-10-01","Boss","Zach Clegg"]
["Clean Cuts & More","387 S. State St.",null,"Pleasant Grove","Utah",null,null,"2011-10-01","Boss","Zach Clegg"]
["CPA Office","100 S. Main",null,"Pleasant Grove","Utah",null,null,"2011-10-01",null,"Zach Clegg"]
["ABELLA BRIDAL LLC","3376 N UNIVERSITY AVE",null,"Provo","Utah","(801)226-2331","ABELLA BRIDAL LLC","2011-10-01","State Fire","Zach Clegg"]
["Escape ","1498 N. State St.",null,"Provo","Utah",null,null,"2011-10-01","Taylor's","Zach Clegg",3]
["HOLLYWOOD SUN","27 W Center Street",null,"Orem","Utah","(801) 404-7300","Shauna Carter","2011-10-03",null,"Zach Clegg"]
["PLAY IT AGAIN SPORTS OF OREM","934 N State Street 105",null,"Orem","Utah","(801) 226-0909","Richard Arnoff","2011-10-04",null,"Zach Clegg"]
["FAMILY DOLLAR, INC. #6287","775 N Orem Boulevard",null,"Orem","Utah","(704) 847-6961","Florence Haywood","2011-10-04","AAA","Zach Clegg"]
["BUCKS4BOOKS","1774 N UNIVERSITY PKWY STE 44",null,"Provo","Utah","(716)871-0205","BRANNIGAN, ROBERT","2011-10-04","fenix","Zach Clegg"]
["BUCKS4BOOKS","1774 N UNIVERSITY PKWY STE 44",null,"Provo","Utah","(716)871-0205","BRANNIGAN, ROBERT","2011-10-04","fenix","Zach Clegg"]
["Sally's beauty supply","700 N. State St.",null,"Lindon","Utah",null,null,"2011-10-05",null,"Zach Clegg"]
["HARBOR FREIGHT TOOLS","155 N State Street",null,"Orem","Utah","(801) 426-9935","Richard Luena","2011-10-05","Cintas","Zach Clegg"]
["CASCADE COLLISION REPAIR","1005 N State Street",null,"Orem","Utah","(801) 224-8020","Linda Nichols","2011-10-07",null,"Zach Clegg"]
["GS AUTO REPAIR,LC","1247 N State Street",null,"Orem","Utah","(801) 380-9289","Gregory Scott","2011-10-10",null,"Zach Clegg"]
["Honk's","400 N. 70 E.",null,"Logan","Utah",null,null,"2011-10-11","Cache Valley","Zach Clegg"]
["A Mad Man's Hobby","100 E. State",null,"Lehi","Utah",null,null,"2011-10-12","Colonial","Zach Clegg",2]
["Custom Tailoring","20 W. Main St.",null,"American Fork","Utah","801-492-1900",null,"2011-10-13","Colonial","Zach Clegg"]
["Murphy's appliance","40 N. Main",null,"Logan","Utah",null,null,"2011-10-14","packer's","Zach Clegg"]
["Humphries Archery","42 W. Main St.",null,"American Fork","Utah","801-857-8017",null,"2011-10-18","Colonial","Zach Clegg"]
["ANIMAL ARK","33 W Center Street",null,"Orem","Utah","(801) 226-2162","Donald Huey","2011-10-20","Utah Fire","Zach Clegg"]
["Custom Tailoring","50 W. State St.",null,"American Fork","Utah",null,null,"2011-10-25","Colonial","Zach Clegg",2]
["Handcarts & More","50 S. Main St.",null,"Heber City","Utah",null,null,"2011-10-25","Byrd's","Zach Clegg",3]
["Evan's Hairstyling","284 W. 200 N.",null,"Lindon","Utah","801-785-1171",null,"2011-10-25","U.S. Fire Shield","Zach Clegg"]
["Animal Hospital","360 N. State St.",null,"Lindon","Utah","801785-6737",null,"2011-10-25","Taylor's","Zach Clegg"]
["MORGON AUTO SALES","300 W 800 North",null,"Orem","Utah","(801) 224-1878","Oscar Morales","2011-10-25",null,"Zach Clegg"]
["HOBBY HABIT, THE","352 N. State Street",null,"Orem","Utah","(801) 224-5521","Daniel Julio","2011-10-25","Colonial","Zach Clegg"]
["Interstate Barricades","637 W. State St.",null,"Pleasant Grove","Utah","801-785-6550",null,"2011-10-25","AAA","Zach Clegg"]
["Mtn. Land Realty","660 W. State St.",null,"Pleasant Grove","Utah",null,null,"2011-10-25","Boss","Zach Clegg"]
["Mount Mahogony","66 E. State St.",null,"Pleasant Grove","Utah",null,null,"2011-10-25","Boss","Zach Clegg"]
["Al & Markes","1300 W. State St.",null,"Pleasant Grove","Utah",null,null,"2011-10-28","Byrd's","Zach Clegg",null,10]
["Bike Barn","201 E. State",null,"Lehi","Utah",null,null,"2011-11-01","Utah Fire","Zach Clegg",2,15]
["HOBBY STOP","327 E 1200 South #10",null,"Orem","Utah","(801) 226-7947","Pauline Mortensen","2011-11-01",null,"Zach Clegg",3]
["OREM FLORAL AND GIFT","97 S State Street",null,"Orem","Utah","(801) 224-5258","Haley Peck","2011-11-03","fenix","Zach Clegg"]
["Durty's Dry Cleaning","315 S. State St",null,"Pleasant Grove","Utah",null,null,"2011-11-03","fenix","Zach Clegg"]
["Coastal Power","560 W. State St.",null,"Pleasant Grove","Utah",null,null,"2011-11-04","Utah Fire","Zach Clegg"]
["Aliami Tobacco","169 W. PG Boulevard",null,"Pleasant Grove","Utah",null,null,"2011-11-05","Taylor's ","Zach Clegg"]
["Midas","1445 S. state St.",null,"Orem","Utah",null,null,"2011-11-08","State Fire","Zach Clegg",2]
["D&B Woods ","220 W. Center St.",null,"Provo","Utah",null,"Karl","2011-11-08","fenix","Zach Clegg",1,17.5,"Did it for free, was having a bad business month"]
["LA Nails","165 State",null,"American Fork","Utah",null,null,"2011-11-10","Byrd's","Zach Clegg"]
["Jack Morris","17 E. Merchant St.",null,"American Fork","Utah",null,null,"2011-11-10","Colonial","Zach Clegg"]
["Graystone Mortgage","175 N. Main ",null,"Heber City","Utah",null,null,"2011-11-10","fenix","Zach Clegg",1]
["OFFICE DEPOT #2838","307 E University Parkway",null,"Orem","Utah","(801) 225-0222","Mark Clark","2011-11-10","Firetrol","Zach Clegg"]
["Hairport","165 State",null,"American Fork","Utah",null,null,"2011-11-11","Byrd's","Zach Clegg"]
["Alpine lock & safe","67 W. Main St.",null,"American Fork","Utah",null,null,"2011-11-11","Boss","Zach Clegg"]
["D'ESPOSORIO ASSOCIATES","555 S State Street 202",null,"Orem","Utah","(801) 687-2551","Fred D'esposorio","2011-11-12","Boss","Zach Clegg"]
["Roberts","640 East State ",null,"American Fork","Utah",null,null,"2011-11-23","Taylor's","Zach Clegg"]
["Gypsie Wagon","52 E. Main St.",null,"American Fork","Utah",null,null,"2011-12-01","Taylor's ","Zach Clegg"]
["Campbell Chiropractic","182 W. State Rd.",null,"American Fork","Utah","763-7700",null,"2011-12-01",null,"Zach Clegg"]
["Forever Young","51 N. 600 W.",null,"American Fork","Utah",null,null,"2011-12-01","Chapparell","Zach Clegg"]
["Color Tile & carpet","131 E. 1600 N.",null,"Logan","Utah",null,null,"2011-12-01","Cache Valley","Zach Clegg"]
["cash store","1490 N. Main",null,"Logan","Utah",null,null,"2011-12-01","Utah Fire","Zach Clegg"]
["EP Auto","400 N. 800 w.",null,"Orem","Utah",null,null,"2011-12-01",null,"Zach Clegg",3]
["Mexitala","394 S. State St.",null,"Orem","Utah",null,null,"2011-12-01",null,"Zach Clegg"]
["PARTS PLUS","374 N State Street",null,"Orem","Utah","(801) 224-2828","Percy Bori","2011-12-01","Taylor's","Zach Clegg"]
["SCOREBOARD SPORTS III","971 S State Street",null,"Orem","Utah","(801) 434-4222","Sean Macklyn","2011-12-01","Taylor's","Zach Clegg"]
["Suds","100 W. Center St.",null,"Pleasant Grove","Utah",null,null,"2011-12-01","Byrd's","Zach Clegg"]
["Alpine Home Medical","1481 N. State ST.",null,"Provo","Utah","801-463-0044",null,"2011-12-01","Associated Fire","Zach Clegg",2]
["Techna","1485 N. State ST",null,"Provo","Utah",null,null,"2011-12-01","Taylor's","Zach Clegg",3]
["Sun Haven","238 E. State St.",null,"Pleasant Grove","Utah",null,null,"2011-12-05","Colonial","Zach Clegg"]
["SAVERS","81 N State Street",null,"Orem","Utah","(801) 225-9445","Justin Troyer","2011-12-07","Taylor's","Zach Clegg"]
["Wasatch Mental Health","578 E. 300 S.",null,"American Fork","Utah",null,null,"2011-12-08","Utah Fire","Zach Clegg"]
["JANITORIAL RESTAURANT SUPPLY","740 S State Street",null,"Orem","Utah","(801) 687-3087","John Juarez","2011-12-10","U.S. Fire Shield","Zach Clegg"]
["Nuttal & Associates","280 S. Main St.",null,"Pleasant Grove","Utah","801-785-1777",null,"2011-12-10","Byrd's","Zach Clegg"]
["WAIKIKI BEACH","2255 N UNIVERSITY PKWY STE 47",null,"Provo","Utah","(801)293-8383","VINCENT, MIKE VINCENT/ PAT","2011-12-10","Boss","Matt Wald"]
["Primerica","597 S Pleasant Grove Blvd ",null,"Pleasant Grove","Utah",null,null,"2011-12-13","Boss","Zach Clegg"]
["SPOON IT UP FROZEN YOGURT","2250 N UNIVERSITY PKWY STE 15",null,"Provo","Utah","(801)373-0028","SLATER, JEREMY","2011-12-14","FirePro","Matt Wald"]
["Intermountain Turbin","270 S. 1060 W.",null,"Lindon","Utah",null,null,"2011-12-20","Colonial","Zach Clegg"]
["ROCK CANYON REAL ESTATE, LLC","202 E 800 South #102",null,"Orem","Utah","(801) 377-5171","Susie Kepoo","2011-12-20","Boss","Zach Clegg"]
["Kid to Kid","1438 E. Main St. ",null,"Lehi","Utah",null,null,"2011-12-30","New","Zach Clegg"]
["PARTYLAND","39 W Center Street",null,"Orem","Utah","(801) 226-1011","Scott Mortensen","2011-12-30","Colonial","Zach Clegg"]
["Park City Title","110 S. Main St.",null,"Heber City","Utah",null,null,"Decline"]
["Rockwater Salon","700 W. 100 S.",null,"Heber City","Utah",null,null,"Decline"]
["City 1st Mortgages","60 W. Main St.",null,"Lehi","Utah",null,null,"Decline","Boss","Zach Clegg"]
["Fillerup","210 S. Main St.",null,"Midway","Utah",null,null,"Decline","Boss","Zach Clegg",2]
["SHEPPICK FAMILY INC DBA MINUTEMAN PRESS","563 N 1200 West",null,"Orem","Utah","(801) 414-0385","Paul Sheppick","Decline",null,"Zach Clegg"]
["RED FOX FURNISHINGS, LLC","1455 W Center Street",null,"Orem","Utah","(801) 228-0909","Brandon Allred","Decline",null,"Zach Clegg"]
["Sigue","788 W 400 N",null,"Orem","Utah",null,null,"Decline",null,"Zach Clegg"]
["Auto Center","1498 N. State St.",null,"Provo","Utah",null,null,"Decline"]
["Great Clips","1776 N. University Parkway",null,"Provo","Utah",null,null,"Decline","Utah Fire","Zach Clegg"]
["Key City Insurance","1779 N. University Parkway",null,"Provo","Utah",null,null,"Decline",null,"Zach Clegg"]
["Metropolitan","232 N. University avenue",null,"Provo","Utah",null,null,"Decline"]
["Jeweler's Bench","275 N. University Avenue",null,"Provo","Utah",null,null,"Decline","Utah Fire","Zach Clegg"]
["Mullet Hoover","184 W. Center St.",null,"Provo","Utah",null,null,"Decline",null,"Zach Clegg"]
["Provo Art Frame","200 W. Center St.",null,"Provo","Utah",null,null,"Decline","Taylor's","Zach Clegg",3]
["Bruce B. Richards","233 E. Main",null,"American Fork","Utah","801-756-8686",null,"No Info"]
["CTR Homes","Main St. State St. 69",null,"American Fork","Utah",null,null,"No Info"]
["Dyson Studio","300 E. State St.",null,"American Fork","Utah",null,null,"No Info","New"]
["EZ Loan","501 N. Main St.",null,"Heber City","Utah",null,null,"No Info",null,null,null,null,"corporate"]
["Heber Valley Commerce","490 N. Main",null,"Heber City","Utah",null,null,"No Info"]
["Scott & James","50 S. Main St.",null,"Heber City","Utah",null,null,"No Info"]
["Wave Publishing","100 W. 120 S.",null,"Heber City","Utah",null,null,"No Info","Golden Spike","Zach Clegg",3]
["Law Firms","100 W. 120 S.",null,"Heber City","Utah",null,null,"No Info"]
["Hot Tub & Dry Chemical","150 S. Main St.",null,"Heber City","Utah",null,null,"No Info"]
["Century 21","540 S. Main St.",null,"Heber City","Utah",null,null,"No Info"]
["The Coffee Station","501 N. Main St.",null,"Heber City","Utah",null,null,"No Info","Firetrol","Zach Clegg",null,null,"Hood"]
["Sasy's Salon","150 S. State St. Suite 4",null,"Lindon","Utah","801-369-3919","Carol","No Info",null,"Zach Clegg"]
["Paper Wizard","150 S. State St. Suite 8",null,"Lindon","Utah",null,null,"No Info",null,"Zach Clegg"]
["Four Chairs Furniture","175 S. State St. Lindon",null,"Lindon","Utah","801-796-3400",null,"No Info",null,"Zach Clegg"]
["USA Appliance","732 N. State St. Lindon",null,"Lindon","Utah","801-972-8797","Jason","No Info",null,"Zach Clegg"]
["Mcfarland auto","1533 S. State St.",null,"Orem","Utah",null,null,"No Info",null,null,3]
["Alpine Gas","1400 S. State sT.",null,"Orem","Utah",null,null,"No Info"]
["Aveda Institute","1700 N. State ST. ",null,"Provo","Utah",null,null,"No Info","Utah Fire","Zach Clegg",null,12]
["Cosmo Prof","1700 N. State ST. ",null,"Provo","Utah",null,null,"No Info",null,null,3]
["Econo","1700 N. State ST. ",null,"Provo","Utah",null,null,"No Info",null,null,3]
["Central Body","1500 N. State St.",null,"Provo","Utah",null,null,"No Info"]
["Carpet One","1770 N. State ST.",null,"Provo","Utah",null,null,"No Info",null,null,3]
["DC Tuxedos","1780 N. University Parkway",null,"Provo","Utah",null,null,"No Info"]
["Rust Coin & Gift","1781 N. University Parkway",null,"Provo","Utah",null,null,"No Info"]
["European Tailors","440 N. University Avenue",null,"Provo","Utah",null,null,"No Info",null,null,3]
["Saints Paintball","282 N. University Avenue",null,"Provo","Utah",null,null,"No Info",null,null,3]
["Aerus","266 N. University Avenue",null,"Provo","Utah",null,null,"No Info"]
["Dragons Keep","260 N. University Avenue",null,"Provo","Utah",null,null,"No Info"]
["Therapeutic Massage","238 N. University Avenue",null,"Provo","Utah",null,null,"No Info"]
["Anderson Stamp & Coin","214 N. University Avenue",null,"Provo","Utah",null,null,"No Info"]
["Clark's Tuxedos ","265 University Avenue ",null,"Provo","Utah",null,null,"No Info"]
["Billejo Clothing","270 N. University Avenue",null,"Provo","Utah",null,null,"No Info"]
["Fabric Mill","176 W. Center St.",null,"Provo","Utah",null,null,"No Info"]
["Bernina","260 W. Center st.",null,"Provo","Utah",null,null,"No Info"]
["Test 4",null,null,null,"California",null,null,"test"]
["Test 2",null,null,null,"Idaho",null,null,"test"]
["Test 3",null,null,null,"New Mexico",null,null,"test"]
["Test",null,null,null,"Wyoming",null,null,"test"]
[null,null,null,null,null,null,null,"`"]

{"sheet":"Income Statement","index":2,"n_rows":999,"n_cols":3,"rows_kept":999,"cut":false,"hidden":false,"merged":[]}
[]
[null,"Total"]
["Income"]
["   Fire Extinguisher Sales",{"$f":"1210.88","v":1210.8800000000001},0.19594764070871787]
["   Hydrotest Revenue",{"$f":"492.28","v":492.28},7.9661985141457142E-2]
["   Inspection Revenue",{"$f":"3579.2","v":3579.2},0.57919512720058386]
["   Parts Revenue",{"$f":"1.5","v":1.5},2.4273376475214455E-4]
["      Pin Sales",{"$f":"3","v":3},4.8546752950428911E-4]
["      Valve Stem Sales",{"$f":"87.75","v":87.75},1.4199925238000457E-2]
["   Total Parts Revenue",{"$f":"((B7)+(B8))+(B9)","v":92.25},1.4928126532256891E-2]
["   Recharge Revenue",{"$f":"805","v":805},0.13026712041698424]
["Total Income",{"$f":"((((B4)+(B5))+(B6))+(B10))+(B11)","v":6179.61},1]
["Cost of Goods Sold",null,0]
["   Commissions",{"$f":"2661.8","v":2661.8},0.43073915667817225]
["   Cost of Goods Sold",{"$f":"0","v":0},0]
["      Fire Extinguishers",{"$f":"886.97","v":886.97},0.14353171154813976]
["   Total Cost of Goods Sold",{"$f":"(B15)+(B16)","v":886.97},0.14353171154813979]
["   Dry Chemical",{"$f":"141.58","v":141.58000000000001},2.2910830942405754E-2]
["   Hydrotest Fees",{"$f":"235.36","v":235.36},3.8086545914709828E-2]
["   Recharge Fees",{"$f":"534.82","v":534.82000000000005},8.6545914709827976E-2]
["   Service Materials",{"$f":"0","v":0},0]
["      Fire Extinguisher Seals",{"$f":"132.75","v":132.75},2.1481938180564791E-2]
["      Pins",{"$f":"45","v":45},7.2820129425643365E-3]
["      Tag Ties",{"$f":"42.18","v":42.18},6.8256734648303044E-3]
["      Tags",{"$f":"175","v":175},2.8318939221083531E-2]
["   Total Service Materials",{"$f":"((((B21)+(B22))+(B23))+(B24))+(B25)","v":394.93},6.3908563809042973E-2]
["Total Cost of Goods Sold",{"$f":"(((((B14)+(B17))+(B18))+(B19))+(B20))+(B26)","v":4855.4600000000009},0.78572272360229856]
["Gross Profit",{"$f":"(B12)-(B27)","v":1324.1499999999987},0.2142772763977015]
["Expenses",null,0]
["   Advertising",{"$f":"312.42","v":312.42},5.0556588522576669E-2]
["      Business Cards",{"$f":"100","v":100},1.6182250983476303E-2]
["      Website",{"$f":"7.67","v":7.67},1.2411786504326326E-3]
["   Total Advertising",{"$f":"((B30)+(B31))+(B32)","v":420.09000000000003},6.7980018156485605E-2]
["   Credit Card Fees",{"$f":"17.29","v":17.29},2.7979111950430526E-3]
["   Insurance",{"$f":"477.42","v":477.42},7.7257302645312567E-2]
["   License Expense",{"$f":"465","v":465},7.5247467073164806E-2]
["   Office Expenses",{"$f":"76.2","v":76.2},1.2330875249408943E-2]
["      invoices",{"$f":"37.59","v":37.590000000000003},6.0829081446887433E-3]
["   Total Office Expenses",{"$f":"(B37)+(B38)","v":113.79},1.8413783394097688E-2]
["   Postage",{"$f":"17.6","v":17.600000000000001},2.8480761730918297E-3]
["   Shipping Expense",{"$f":"18","v":18},2.9128051770257344E-3]
["   Technician Supplies",{"$f":"274.91","v":274.91000000000003},4.4486626178674708E-2]
["   Travel",{"$f":"59.58","v":59.58},9.6413851359551817E-3]
["   Travel Meals",{"$f":"39.54","v":39.54},6.3984620388665304E-3]
["Total Expenses",{"$f":"(((((((((B33)+(B34))+(B35))+(B36))+(B39))+(B40))+(B41))+(B42))+(B43))+(B44)","v":1903.22},0.30798383716771771]
["Net Operating Income",{"$f":"(B28)-(B45)","v":-579.0700000000013},-9.370656077001624E-2]
["Other Expenses",null,0]
["   Miscellaneous",{"$f":"7.2","v":7.2},1.1651220708102938E-3]
["Total Other Expenses",{"$f":"B48","v":7.2},1.165122070810294E-3]
["Net Other Income",{"$f":"(0)-(B49)","v":-7.2},-1.165122070810294E-3]
[null,null,0]
[null,null,0]
[null,null,0]
[null,null,0]
[null,null,0]
[null,null,0]
[null,null,0]
[null,null,0]
[null,null,0]
[null,null,0]
[null,null,0]
[null,null,0]
[null,null,0]
[null,null,0]
[null,null,0]
[null,null,0]
[null,null,0]
[null,null,0]
[null,null,0]
[null,null,0]
[null,null,0]
[null,null,0]
[null,null,0]
[null,null,0]
[null,null,0]
[null,null,0]
[null,null,0]
[null,null,0]
[null,null,0]
[null,null,0]
[null,null,0]
[null,null,0]
[null,null,0]
[null,null,0]
[null,null,0]
[null,null,0]
[null,null,0]
[null,null,0]
[null,null,0]
[null,null,0]
[null,null,0]
[null,null,0]
[null,null,0]
[null,null,0]
[null,null,0]
[null,null,0]
[null,null,0]
[null,null,0]
[null,null,0]
[null,null,0]
[null,null,0]
[null,null,0]
[null,null,0]
[null,null,0]
[null,null,0]
[null,null,0]
[null,null,0]
[null,null,0]
[null,null,0]
[null,null,0]
[null,null,0]
[null,null,0]
[null,null,0]
[null,null,0]
[null,null,0]
[null,null,0]
[null,null,0]
[null,null,0]
[null,null,0]
[null,null,0]
[null,null,0]
[null,null,0]
[null,null,0]
[null,null,0]
[null,null,0]
[null,null,0]
[null,null,0]
[null,null,0]
[null,null,0]
[null,null,0]
[null,null,0]
[null,null,0]
[null,null,0]
[null,null,0]
[null,null,0]
[null,null,0]
[null,null,0]
[null,null,0]
[null,null,0]
[null,null,0]
[null,null,0]
[null,null,0]
[null,null,0]
[null,null,0]
[null,null,0]
[null,null,0]
[null,null,0]
[null,null,0]
[null,null,0]
[null,null,0]
[null,null,0]
[null,null,0]
[null,null,0]
[null,null,0]
[null,null,0]
[null,null,0]
[null,null,0]
[null,null,0]
[null,null,0]
[null,null,0]
[null,null,0]
[null,null,0]
[null,null,0]
[null,null,0]
[null,null,0]
[null,null,0]
[null,null,0]
[null,null,0]
[null,null,0]
[null,null,0]
[null,null,0]
[null,null,0]
[null,null,0]
[null,null,0]
[null,null,0]
[null,null,0]
[null,null,0]
[null,null,0]
[null,null,0]
[null,null,0]
[null,null,0]
[null,null,0]
[null,null,0]
[null,null,0]
[null,null,0]
[null,null,0]
[null,null,0]
[null,null,0]
[null,null,0]
[null,null,0]
[null,null,0]
[null,null,0]
[null,null,0]
[null,null,0]
[null,null,0]
[null,null,0]
[null,null,0]
[null,null,0]
[null,null,0]
[null,null,0]
[null,null,0]
[null,null,0]
[null,null,0]
[null,null,0]
[null,null,0]
[null,null,0]
[null,null,0]
[null,null,0]
[null,null,0]
[null,null,0]
[null,null,0]
[null,null,0]
[null,null,0]
[null,null,0]
[null,null,0]
[null,null,0]
[null,null,0]
[null,null,0]
[null,null,0]
[null,null,0]
[null,null,0]
[null,null,0]
[null,null,0]
[null,null,0]
[null,null,0]
[null,null,0]
[null,null,0]
[null,null,0]
[null,null,0]
[null,null,0]
[null,null,0]
[null,null,0]
[null,null,0]
[null,null,0]
[null,null,0]
[null,null,0]
[null,null,0]
[null,null,0]
[null,null,0]
[null,null,0]
[null,null,0]
[null,null,0]
[null,null,0]
[null,null,0]
[null,null,0]
[null,null,0]
[null,null,0]
[null,null,0]
[null,null,0]
[null,null,0]
[null,null,0]
[null,null,0]
[null,null,0]
[null,null,0]
[null,null,0]
[null,null,0]
[null,null,0]
[null,null,0]
[null,null,0]
[null,null,0]
[null,null,0]
[null,null,0]
[null,null,0]
[null,null,0]
[null,null,0]
[null,null,0]
[null,null,0]
[null,null,0]
[null,null,0]
[null,null,0]
[null,null,0]
[null,null,0]
[null,null,0]
[null,null,0]
[null,null,0]
[null,null,0]
[null,null,0]
[null,null,0]
[null,null,0]
[null,null,0]
[null,null,0]
[null,null,0]
[null,null,0]
[null,null,0]
[null,null,0]
[null,null,0]
[null,null,0]
[null,null,0]
[null,null,0]
[null,null,0]
[null,null,0]
[null,null,0]
[null,null,0]
[null,null,0]
[null,null,0]
[null,null,0]
[null,null,0]
[null,null,0]
[null,null,0]
[null,null,0]
[null,null,0]
[null,null,0]
[null,null,0]
[null,null,0]
[null,null,0]
[null,null,0]
[null,null,0]
[null,null,0]
[null,null,0]
[null,null,0]
[null,null,0]
[null,null,0]
[null,null,0]
[null,null,0]
[null,null,0]
[null,null,0]
[null,null,0]
[null,null,0]
[null,null,0]
[null,null,0]
[null,null,0]
[null,null,0]
[null,null,0]
[null,null,0]
[null,null,0]
[null,null,0]
[null,null,0]
[null,null,0]
[null,null,0]
[null,null,0]
[null,null,0]
[null,null,0]
[null,null,0]
[null,null,0]
[null,null,0]
[null,null,0]
[null,null,0]
[null,null,0]
[null,null,0]
[null,null,0]
[null,null,0]
[null,null,0]
[null,null,0]
[null,null,0]
[null,null,0]
[null,null,0]
[null,null,0]
[null,null,0]
[null,null,0]
[null,null,0]
[null,null,0]
[null,null,0]
[null,null,0]
[null,null,0]
[null,null,0]
[null,null,0]
[null,null,0]
[null,null,0]
[null,null,0]
[null,null,0]
[null,null,0]
[null,null,0]
[null,null,0]
[null,null,0]
[null,null,0]
[null,null,0]
[null,null,0]
[null,null,0]
[null,null,0]
[null,null,0]
[null,null,0]
[null,null,0]
[null,null,0]
[null,null,0]
[null,null,0]
[null,null,0]
[null,null,0]
[null,null,0]
[null,null,0]
[null,null,0]
[null,null,0]
[null,null,0]
[null,null,0]
[null,null,0]
[null,null,0]
[null,null,0]
[null,null,0]
[null,null,0]
[null,null,0]
[null,null,0]
[null,null,0]
[null,null,0]
[null,null,0]
[null,null,0]
[null,null,0]
[null,null,0]
[null,null,0]
[null,null,0]
[null,null,0]
[null,null,0]
[null,null,0]
[null,null,0]
[null,null,0]
[null,null,0]
[null,null,0]
[null,null,0]
[null,null,0]
[null,null,0]
[null,null,0]
[null,null,0]
[null,null,0]
[null,null,0]
[null,null,0]
[null,null,0]
[null,null,0]
[null,null,0]
[null,null,0]
[null,null,0]
[null,null,0]
[null,null,0]
[null,null,0]
[null,null,0]
[null,null,0]
[null,null,0]
[null,null,0]
[null,null,0]
[null,null,0]
[null,null,0]
[null,null,0]
[null,null,0]
[null,null,0]
[null,null,0]
[null,null,0]
[null,null,0]
[null,null,0]
[null,null,0]
[null,null,0]
[null,null,0]
[null,null,0]
[null,null,0]
[null,null,0]
[null,null,0]
[null,null,0]
[null,null,0]
[null,null,0]
[null,null,0]
[null,null,0]
[null,null,0]
[null,null,0]
[null,null,0]
[null,null,0]
[null,null,0]
[null,null,0]
[null,null,0]
[null,null,0]
[null,null,0]
[null,null,0]
[null,null,0]
[null,null,0]
[null,null,0]
[null,null,0]
[null,null,0]
[null,null,0]
[null,null,0]
[null,null,0]
[null,null,0]
[null,null,0]
[null,null,0]
[null,null,0]
[null,null,0]
[null,null,0]
[null,null,0]
[null,null,0]
[null,null,0]
[null,null,0]
[null,null,0]
[null,null,0]
[null,null,0]
[null,null,0]
[null,null,0]
[null,null,0]
[null,null,0]
[null,null,0]
[null,null,0]
[null,null,0]
[null,null,0]
[null,null,0]
[null,null,0]
[null,null,0]
[null,null,0]
[null,null,0]
[null,null,0]
[null,null,0]
[null,null,0]
[null,null,0]
[null,null,0]
[null,null,0]
[null,null,0]
[null,null,0]
[null,null,0]
[null,null,0]
[null,null,0]
[null,null,0]
[null,null,0]
[null,null,0]
[null,null,0]
[null,null,0]
[null,null,0]
[null,null,0]
[null,null,0]
[null,null,0]
[null,null,0]
[null,null,0]
[null,null,0]
[null,null,0]
[null,null,0]
[null,null,0]
[null,null,0]
[null,null,0]
[null,null,0]
[null,null,0]
[null,null,0]
[null,null,0]
[null,null,0]
[null,null,0]
[null,null,0]
[null,null,0]
[null,null,0]
[null,null,0]
[null,null,0]
[null,null,0]
[null,null,0]
[null,null,0]
[null,null,0]
[null,null,0]
[null,null,0]
[null,null,0]
[null,null,0]
[null,null,0]
[null,null,0]
[null,null,0]
[null,null,0]
[null,null,0]
[null,null,0]
[null,null,0]
[null,null,0]
[null,null,0]
[null,null,0]
[null,null,0]
[null,null,0]
[null,null,0]
[null,null,0]
[null,null,0]
[null,null,0]
[null,null,0]
[null,null,0]
[null,null,0]
[null,null,0]
[null,null,0]
[null,null,0]
[null,null,0]
[null,null,0]
[null,null,0]
[null,null,0]
[null,null,0]
[null,null,0]
[null,null,0]
[null,null,0]
[null,null,0]
[null,null,0]
[null,null,0]
[null,null,0]
[null,null,0]
[null,null,0]
[null,null,0]
[null,null,0]
[null,null,0]
[null,null,0]
[null,null,0]
[null,null,0]
[null,null,0]
[null,null,0]
[null,null,0]
[null,null,0]
[null,null,0]
[null,null,0]
[null,null,0]
[null,null,0]
[null,null,0]
[null,null,0]
[null,null,0]
[null,null,0]
[null,null,0]
[null,null,0]
[null,null,0]
[null,null,0]
[null,null,0]
[null,null,0]
[null,null,0]
[null,null,0]
[null,null,0]
[null,null,0]
[null,null,0]
[null,null,0]
[null,null,0]
[null,null,0]
[null,null,0]
[null,null,0]
[null,null,0]
[null,null,0]
[null,null,0]
[null,null,0]
[null,null,0]
[null,null,0]
[null,null,0]
[null,null,0]
[null,null,0]
[null,null,0]
[null,null,0]
[null,null,0]
[null,null,0]
[null,null,0]
[null,null,0]
[null,null,0]
[null,null,0]
[null,null,0]
[null,null,0]
[null,null,0]
[null,null,0]
[null,null,0]
[null,null,0]
[null,null,0]
[null,null,0]
[null,null,0]
[null,null,0]
[null,null,0]
[null,null,0]
[null,null,0]
[null,null,0]
[null,null,0]
[null,null,0]
[null,null,0]
[null,null,0]
[null,null,0]
[null,null,0]
[null,null,0]
[null,null,0]
[null,null,0]
[null,null,0]
[null,null,0]
[null,null,0]
[null,null,0]
[null,null,0]
[null,null,0]
[null,null,0]
[null,null,0]
[null,null,0]
[null,null,0]
[null,null,0]
[null,null,0]
[null,null,0]
[null,null,0]
[null,null,0]
[null,null,0]
[null,null,0]
[null,null,0]
[null,null,0]
[null,null,0]
[null,null,0]
[null,null,0]
[null,null,0]
[null,null,0]
[null,null,0]
[null,null,0]
[null,null,0]
[null,null,0]
[null,null,0]
[null,null,0]
[null,null,0]
[null,null,0]
[null,null,0]
[null,null,0]
[null,null,0]
[null,null,0]
[null,null,0]
[null,null,0]
[null,null,0]
[null,null,0]
[null,null,0]
[null,null,0]
[null,null,0]
[null,null,0]
[null,null,0]
[null,null,0]
[null,null,0]
[null,null,0]
[null,null,0]
[null,null,0]
[null,null,0]
[null,null,0]
[null,null,0]
[null,null,0]
[null,null,0]
[null,null,0]
[null,null,0]
[null,null,0]
[null,null,0]
[null,null,0]
[null,null,0]
[null,null,0]
[null,null,0]
[null,null,0]
[null,null,0]
[null,null,0]
[null,null,0]
[null,null,0]
[null,null,0]
[null,null,0]
[null,null,0]
[null,null,0]
[null,null,0]
[null,null,0]
[null,null,0]
[null,null,0]
[null,null,0]
[null,null,0]
[null,null,0]
[null,null,0]
[null,null,0]
[null,null,0]
[null,null,0]
[null,null,0]
[null,null,0]
[null,null,0]
[null,null,0]
[null,null,0]
[null,null,0]
[null,null,0]
[null,null,0]
[null,null,0]
[null,null,0]
[null,null,0]
[null,null,0]
[null,null,0]
[null,null,0]
[null,null,0]
[null,null,0]
[null,null,0]
[null,null,0]
[null,null,0]
[null,null,0]
[null,null,0]
[null,null,0]
[null,null,0]
[null,null,0]
[null,null,0]
[null,null,0]
[null,null,0]
[null,null,0]
[null,null,0]
[null,null,0]
[null,null,0]
[null,null,0]
[null,null,0]
[null,null,0]
[null,null,0]
[null,null,0]
[null,null,0]
[null,null,0]
[null,null,0]
[null,null,0]
[null,null,0]
[null,null,0]
[null,null,0]
[null,null,0]
[null,null,0]
[null,null,0]
[null,null,0]
[null,null,0]
[null,null,0]
[null,null,0]
[null,null,0]
[null,null,0]
[null,null,0]
[null,null,0]
[null,null,0]
[null,null,0]
[null,null,0]
[null,null,0]
[null,null,0]
[null,null,0]
[null,null,0]
[null,null,0]
[null,null,0]
[null,null,0]
[null,null,0]
[null,null,0]
[null,null,0]
[null,null,0]
[null,null,0]
[null,null,0]
[null,null,0]
[null,null,0]
[null,null,0]
[null,null,0]
[null,null,0]
[null,null,0]
[null,null,0]
[null,null,0]
[null,null,0]
[null,null,0]
[null,null,0]
[null,null,0]
[null,null,0]
[null,null,0]
[null,null,0]
[null,null,0]
[null,null,0]
[null,null,0]
[null,null,0]
[null,null,0]
[null,null,0]
[null,null,0]
[null,null,0]
[null,null,0]
[null,null,0]
[null,null,0]
[null,null,0]
[null,null,0]
[null,null,0]
[null,null,0]
[null,null,0]
[null,null,0]
[null,null,0]
[null,null,0]
[null,null,0]
[null,null,0]
[null,null,0]
[null,null,0]
[null,null,0]
[null,null,0]
[null,null,0]
[null,null,0]
[null,null,0]
[null,null,0]
[null,null,0]
[null,null,0]
[null,null,0]
[null,null,0]
[null,null,0]
[null,null,0]
[null,null,0]
[null,null,0]
[null,null,0]
[null,null,0]
[null,null,0]
[null,null,0]
[null,null,0]
[null,null,0]
[null,null,0]
[null,null,0]
[null,null,0]
[null,null,0]
[null,null,0]
[null,null,0]
[null,null,0]
[null,null,0]
[null,null,0]
[null,null,0]
[null,null,0]
[null,null,0]
[null,null,0]
[null,null,0]
[null,null,0]
[null,null,0]
[null,null,0]
[null,null,0]
[null,null,0]
[null,null,0]
[null,null,0]
[null,null,0]
[null,null,0]
[null,null,0]
[null,null,0]
[null,null,0]
[null,null,0]
[null,null,0]
[null,null,0]
[null,null,0]
[null,null,0]
[null,null,0]
[null,null,0]
[null,null,0]
[null,null,0]
[null,null,0]
[null,null,0]
[null,null,0]
[null,null,0]
[null,null,0]
[null,null,0]
[null,null,0]
[null,null,0]
[null,null,0]
[null,null,0]
[null,null,0]
[null,null,0]
[null,null,0]
[null,null,0]
[null,null,0]
[null,null,0]
[null,null,0]
[null,null,0]
[null,null,0]
[null,null,0]
[null,null,0]
[null,null,0]
[null,null,0]
[null,null,0]
[null,null,0]
[null,null,0]
[null,null,0]
[null,null,0]
[null,null,0]
[null,null,0]
[null,null,0]
[null,null,0]
[null,null,0]
[null,null,0]
[null,null,0]
[null,null,0]
[null,null,0]
[null,null,0]
[null,null,0]
[null,null,0]
[null,null,0]
[null,null,0]
[null,null,0]
[null,null,0]
[null,null,0]
[null,null,0]
[null,null,0]
[null,null,0]
[null,null,0]
[null,null,0]
[null,null,0]
[null,null,0]
[null,null,0]
[null,null,0]
[null,null,0]
[null,null,0]
[null,null,0]
[null,null,0]
[null,null,0]
[null,null,0]
[null,null,0]
[null,null,0]
[null,null,0]
[null,null,0]
[null,null,0]
[null,null,0]
[null,null,0]
[null,null,0]
[null,null,0]
[null,null,0]
[null,null,0]
[null,null,0]
[null,null,0]
[null,null,0]
[null,null,0]
[null,null,0]
[null,null,0]
[null,null,0]
[null,null,0]
[null,null,0]
[null,null,0]
[null,null,0]
[null,null,0]
[null,null,0]
[null,null,0]
[null,null,0]
[null,null,0]
[null,null,0]
[null,null,0]
[null,null,0]
[null,null,0]
[null,null,0]
[null,null,0]
[null,null,0]
[null,null,0]
[null,null,0]
[null,null,0]
[null,null,0]
[null,null,0]
[null,null,0]
[null,null,0]
[null,null,0]
[null,null,0]
[null,null,0]
[null,null,0]

{"sheet":"Balance Sheet","index":3,"n_rows":0,"n_cols":0,"rows_kept":0,"cut":false,"hidden":false,"merged":[]}